Date,Supplier,Brief Description and Quantity,Cost Centre,A/C,Merchant Category,� Gross Amount,VAT Not Recovered,Dept
01/04/2019,Hootsuite,Software for Customer Services,5175,64071,ICT Software,230.40,,Corporate Office
02/04/2019,T V LICENCING,LICENCE OLH VALID UNTIL 31 MAR 2020,4021,60410,Licences,154.50,,One Leisure St Ives
02/04/2019,T V LICENCING,LICENCE OLSN VALID UNTIL 31 MAR 2020,4075,60410,Licences,154.50,,One Leisure St Ives
03/04/2019,George Hazel & Co,Hospitality,4145,61903,Hospitality,37.26,,Corporate Office
03/04/2019,George Hazell,Hospitality - hot water dispensers,4145,61903,Hospitality,37.26,,Corporate Office
03/04/2019,George Hazel & Co,Hospitality,4145,61903,Hospitality,-37.26,,Corporate Office
03/04/2019,Police Supplies,"Utility Belt, Pouch, Cases, Key reel",4362,62000,"Clothes, Uniform and Laundry",230.35,,Operations
03/04/2019,ViaKeys Ltd,Impact screen protectors,4362,62000,"Clothes, Uniform and Laundry",60.74,,Operations
03/04/2019,BCS.org,Membership,5225,62402,Profesional Services,88.00,,IMD
03/04/2019,BCS.org,Membership,5225,62402,Profesional Services,-88.00,,IMD
03/04/2019,BCS.org,BCS Membership,5229,64071,ICT Software,88.00,,IMD
03/04/2019,Travelodge,Temporary Accommodation,H4608,64401,B&B Accomodation,-166.00,,Housing
03/04/2019,Cross Keys Homes,RIA,H4408,64403,Homeless Prevention Payments,216.08,,Housing
04/04/2019,Wilko limited,Oasis,5220,60115,Staff Training and Devlopment,43.55,,Human Resources
05/04/2019,WestMidTrain,Train travel - Solace meeting,4145,60012,Employee Allowances,6.60,,Corporate Office
05/04/2019,Amazon,project accessories,100021,60201,Maintenance Buildings,249.00,,One Leisure Huntingdon
05/04/2019,Amazon,Steam Mop ,4029,61713,Equipment,79.23,,One Leisure Huntingdon
05/04/2019,Amazon,ipod cases,4033,61713,Equipment,9.24,,One Leisure Huntingdon
05/04/2019,Amazon,HAND OP INFLATING FBALL PUMP,4054,61713,Equipment,3.99,,One Leisure St Ives
05/04/2019,Martynsbarg,Equipment,4124,61713,Equipment,54.99,,Country Services
05/04/2019,Coleshill Park,Hospitality,4145,61903,Hospitality,6.60,,Corporate Office
05/04/2019,Coleshill Park,Hospitality,4145,61903,Hospitality,-6.60,,Corporate Office
05/04/2019,We Transfer Plus,Marketing ?,4050,62005,"Advertising, Publicity and Marketing",106.19,,One Leisure Huntingdon
05/04/2019,Luminus Homes,RIA,H2337,64403,Homeless Prevention Payments,120.82,,Housing
05/04/2019,Cross Keys Homes,RIA,H4553,64403,Homeless Prevention Payments,216.08,,Housing
06/04/2019,Amazon,tablet case,4056,61713,Equipment,25.90,,One Leisure St Ives
06/04/2019,Amazon,2 x tablets,4056,61713,Equipment,119.98,,One Leisure St Ives
06/04/2019,Screwfix,Equipment,4124,61713,Equipment,29.00,,Country Services
06/04/2019,Voucher Express,Replace residents broken lock,4327,61713,Equipment,23.99,,Operations
07/04/2019,Tesco Stores,Equipment,4075,61713,Equipment,6.83,,One Leisure Huntingdon
07/04/2019,Amazon,Equipment,4124,61713,Equipment,110.29,,Country Services
07/04/2019,Tesco,Tractor Fuel,4074,60902,Fuel,6.83,,One Leisure Huntingdon
07/04/2019,Tesco Stores,Equipment,4075,61713,Equipment,-6.83,,One Leisure Huntingdon
08/04/2019,Amazon,pressure washer,4055,61713,Equipment,98.00,,One Leisure St Ives
08/04/2019,Amazon,Equipment,4124,61713,Equipment,24.14,,Country Services
08/04/2019,Wordery,Hospitality,4145,61903,Hospitality,28.15,,Corporate Office
08/04/2019,Wordery,Hospitality,4145,61903,Hospitality,-28.15,,Corporate Office
08/04/2019,Wordery,Books,4145,62003,"Books, Publications",28.15,,Corporate Office
09/04/2019,B & Q,Decorating items,100021,60201,Maintenance Buildings,184.68,,One Leisure Huntingdon
09/04/2019,Digicert,SSL Cerificate for *scambs.gov.uk,5225,64071,ICT Software,282.88,,IMD
09/04/2019,Digicert,SSL Cerificate for *scambs.gov.uk,5225,64071,ICT Software,156.45,,IMD
09/04/2019,Digicert,SSL Cerificate for *scambs.gov.uk,5225,64071,ICT Software,156.45,,IMD
09/04/2019,Digicert,SSL Cerificate for *scambs.gov.uk,5225,64071,ICT Software,-282.88,,IMD
09/04/2019,Digicert,SSL Cerificate for *scambs.gov.uk,5225,64071,ICT Software,-156.45,,IMD
09/04/2019,Digicert,SSL Cerificate for *scambs.gov.uk,5225,64071,ICT Software,-156.45,,IMD
09/04/2019,Digicert,remote.cambridge.gov.uk - Multi Domain,5227,64071,ICT Software,282.88,,IMD
09/04/2019,Digicert,erevenues.cambridge.gov.uk,5227,64071,ICT Software,156.45,,IMD
09/04/2019,Digicert,idox.cambridge.gov.uk,5227,64071,ICT Software,156.45,,IMD
10/04/2019,EEF,Construction and Design Management GM & MC,5220,60115,Staff Training and Devlopment,576.00,,Operations
10/04/2019,Essential Aids,project accessories,100021,60201,Maintenance Buildings,134.35,,One Leisure Huntingdon
10/04/2019,Granmore Ceilings,ceiling tiles,100021,60201,Maintenance Buildings,349.80,,One Leisure Huntingdon
10/04/2019,Granmore Ceilings,ceiling tiles,100021,60201,Maintenance Buildings,217.80,,One Leisure Huntingdon
10/04/2019,Granmore Ceilings,ceiling tiles,100021,60201,Maintenance Buildings,349.80,,One Leisure Huntingdon
10/04/2019,Hoosuite,Hospitality,4145,61903,Hospitality,230.40,,Corporate Office
10/04/2019,Hoosuite,Hospitality,4145,61903,Hospitality,-230.40,,Corporate Office
10/04/2019,Zemux,Market Advertising,5366,62005,"Advertising, Publicity and Marketing",490.00,,Operations
10/04/2019,Travelodge,Temporary Accommodation,H4630,64401,B&B Accomodation,279.00,,Housing
11/04/2019,Amazon,creche hoover (OLH),4016,61713,Equipment,69.99,,One Leisure Huntingdon
11/04/2019,Kalnet4U Ltd,0300 service for Building Control,5222,64077,Landline Rental,17.99,,IMD
11/04/2019,Kalnet4U Ltd,3C Building Control ,5222,64077,Landline Rental,17.99,,IMD
11/04/2019,Kalnet4U Ltd,0300 service for Building Control,5222,64077,Landline Rental,-17.99,,IMD
12/04/2019,Travelodge,Temporary Accommodation,H4633,64401,B&B Accomodation,413.00,,Housing
13/04/2019,1&1 Internet Ltd,Domain Registration,5225,64071,ICT Software,27.71,,IMD
13/04/2019,J2 Efax Plus Service,eFax Service for City,5222,64071,ICT Software,19.20,,IMD
13/04/2019,1&1 Internet Ltd,Domain - hdcventures.com&.co.uk,5224,64071,ICT Software,27.71,,IMD
13/04/2019,1&1 Internet Ltd,Domain Registration,5225,64071,ICT Software,-27.71,,IMD
13/04/2019,J2 Efax Plus Service,eFax Service for City,5222,64077,Landline Rental,19.20,,IMD
13/04/2019,J2 Efax Plus Service,eFax Service for City,5222,64077,Landline Rental,-19.20,,IMD
14/04/2019,Amazon,Amazon Prime,4108,61713,Equipment,7.99,,Active Leisure
15/04/2019,Amazon,Sterio protection case (OLH),4022,61713,Equipment,11.99,,One Leisure Huntingdon
15/04/2019,Amazon,Wireless blue tooth speaker,4022,61713,Equipment,59.99,,One Leisure Huntingdon
15/04/2019,Amazon,Equipment,4075,61713,Equipment,128.00,,One Leisure Huntingdon
15/04/2019,Amazon,Equipment,4075,61713,Equipment,9.49,,One Leisure Huntingdon
15/04/2019,Canva,Marketing ?,4050,62005,"Advertising, Publicity and Marketing",7.86,,One Leisure Huntingdon
15/04/2019,Travelodge,Temporary Accommodation,H4634,64401,B&B Accomodation,556.00,,Housing
15/04/2019,Amazon,10 x Padlocks,4075,60201,Maintenance Buildings,128.00,,One Leisure Huntingdon
15/04/2019,Amazon,Webbing Straps,4076,61713,Equipment,9.49,,One Leisure Huntingdon
15/04/2019,Amazon,Equipment,4075,61713,Equipment,-128.00,,One Leisure Huntingdon
15/04/2019,Amazon,Equipment,4075,61713,Equipment,-9.49,,One Leisure Huntingdon
16/04/2019,Later Life Limited,Training,5220,60115,Staff Training and Devlopment,564.00,,Human Resources
16/04/2019,DVLA,VED,Redacted,60907,Other Vehicle Costs,167.50,,Operations
16/04/2019,DVLA,VED,Redacted,60907,Other Vehicle Costs,167.50,,Operations
16/04/2019,DVLA,VED,Redacted,60907,Other Vehicle Costs,167.50,,Operations
16/04/2019,Argos,DYSON VACUUM CLEANER,4055,61713,Equipment,249.99,,One Leisure St Ives
16/04/2019,Amazon,Equipment,4075,61713,Equipment,6.95,,One Leisure Huntingdon
16/04/2019,Meetup Org,Networking,5225,64071,ICT Software,56.79,,IMD
16/04/2019,Meetup Org,Networking,5225,64071,ICT Software,-56.79,,IMD
16/04/2019,Meetup Org,Networking,5229,64071,ICT Software,56.79,,IMD
16/04/2019,Amazon,Belt Buckles,4076,61713,Equipment,6.95,,One Leisure Huntingdon
16/04/2019,Amazon,Equipment,4075,61713,Equipment,-6.95,,One Leisure Huntingdon
17/04/2019,Balloons Galore,Hospitality,4145,61903,Hospitality,117.55,,Corporate Office
17/04/2019,Balloons Galore,Hospitality,4145,61903,Hospitality,-117.55,,Corporate Office
17/04/2019,Balloons Galore,Customer Portal Launch,4156,62005,"Advertising, Publicity and Marketing",117.55,,Corporate Office
17/04/2019,Guinness Northern,RIA,H4433,64403,Homeless Prevention Payments,158.00,,Housing
18/04/2019,IHBC,Training,5220,60115,Staff Training and Devlopment,198.00,,Human Resources
18/04/2019,Sainsburys,Training Materials,5220,60115,Staff Training and Devlopment,38.20,,Human Resources
18/04/2019,Life Fitness,REPAIR ON CABLE MACHINE,4053,61702,"Maintenance - Equipment, Furniture and Materials",156.00,,One Leisure St Ives
18/04/2019,Travelodge,Temporary Accommodation,H4634,64401,B&B Accomodation,473.00,,Housing
18/04/2019,Travelodge,Temporary Accommodation,H4636,64401,B&B Accomodation,398.00,,Housing
19/04/2019,Tesco Stores,Suncream,4317,62000,"Clothes, Uniform and Laundry",26.00,,Operations
19/04/2019,Adobe,Marketing ?,4010,62005,"Advertising, Publicity and Marketing",41.62,,One Leisure Huntingdon
22/04/2019,Amazon,Amazon Prime,4075,61713,Equipment,7.99,,One Leisure Huntingdon
22/04/2019,Amazon,Prime Subscription,4075,60410,Licences,7.99,,One Leisure Huntingdon
22/04/2019,Amazon,Amazon Prime,4075,61713,Equipment,-7.99,,One Leisure Huntingdon
23/04/2019,Bristows Cycles Ltd,Equipment,4124,61713,Equipment,116.47,,Country Services
23/04/2019,Marks & Spencer,Hospitality,4145,61903,Hospitality,7.00,,Corporate Office
23/04/2019,Marks & Spencer,Hospitality - Staff induction,4145,61903,Hospitality,7.00,,Corporate Office
23/04/2019,Marks & Spencer,Hospitality,4145,61903,Hospitality,-7.00,,Corporate Office
23/04/2019,Mailchimp,Automated email Subs and monthly subs,5222,64071,ICT Software,54.42,,IMD
23/04/2019,Mailchimp,Auto-email subscription,5222,64071,ICT Software,54.42,,IMD
23/04/2019,Mailchimp,Automated email Subs and monthly subs,5222,64071,ICT Software,-54.42,,IMD
23/04/2019,Travelodge,Temporary Accommodation,H4630,64401,B&B Accomodation,-191.00,,Housing
23/04/2019,Travelodge,Temporary Accommodation,H4633,64401,B&B Accomodation,-123.00,,Housing
24/04/2019,Mick George Ltd,Skip,100021,60201,Maintenance Buildings,312.00,,One Leisure Huntingdon
25/04/2019,B & Q,Decorating items,100021,60201,Maintenance Buildings,88.17,,One Leisure Huntingdon
25/04/2019,Amazon,6 KILNER STORAGE JARS,4050,61700,Hire Equipment,49.99,,One Leisure St Ives
25/04/2019,Eurika Direct,PLASTERS/BANDAGES VARIOUS,4050,61709,Materials,48.66,,One Leisure St Ives
25/04/2019,Amazon,WIPE CLEAN PVC TABLE CLOTHS,4050,61713,Equipment,54.25,,One Leisure St Ives
25/04/2019,Booker KYC,Equipment,4124,61713,Equipment,111.88,,Country Services
26/04/2019,B & Q,Decorating items,100021,60201,Maintenance Buildings,16.00,,One Leisure Huntingdon
26/04/2019,Amazon,Equipment,4075,61713,Equipment,44.69,,One Leisure Huntingdon
26/04/2019,Atlassian,Cloud and JIRA Services,5225,64071,ICT Software,23.99,,IMD
26/04/2019,Atlassian,Cloud and JIRA Services,5225,64071,ICT Software,-23.99,,IMD
26/04/2019,Atlassian,Cloud and JIRA Services,5229,64071,ICT Software,23.99,,IMD
26/04/2019,Travelodge,Temporary Accommodation,H4634,64401,B&B Accomodation,458.00,,Housing
26/04/2019,CIBSE,Membership,5276,64800,Membersip and Subscription,131.00,,Operations
26/04/2019,Amazon,5 x Keyed Alike Padlocks,4075,60201,Maintenance Buildings,44.69,,One Leisure Huntingdon
26/04/2019,Amazon,Equipment,4075,61713,Equipment,-44.69,,One Leisure Huntingdon
27/04/2019,Arthur Ibbett Ltd,replacement starter mech,4063,60201,Maintenance Buildings,67.62,,One Leisure St Ives
27/04/2019,Github,Monthly Subs for 7 licences,5225,64071,ICT Software,34.39,,IMD
27/04/2019,Github,Monthly Subs for 7 licences,5225,64071,ICT Software,-34.39,,IMD
27/04/2019,Github,Monthly Subscription for 7 Licences,5229,64071,ICT Software,34.39,,IMD
29/04/2019,Gibbs & Dandy,Paint,4063,60201,Maintenance Buildings,41.00,,One Leisure St Ives
29/04/2019,Crafty Shop,ipod ,4022,61713,Equipment,27.99,,One Leisure Huntingdon
29/04/2019,Chiseled,ipod ,4022,61713,Equipment,32.00,,One Leisure Huntingdon
29/04/2019,istock,Marketing ?,4010,62005,"Advertising, Publicity and Marketing",70.00,,One Leisure Huntingdon
29/04/2019,Hoosuite,Marketing ?,4010,62005,"Advertising, Publicity and Marketing",142.80,,One Leisure Huntingdon
29/04/2019,Bitrix,Web-based PM Tool,5225,64071,ICT Software,158.86,,IMD
29/04/2019,Bitrix,Web-based PM Tool,5225,64071,ICT Software,-158.86,,IMD
29/04/2019,Bitrix,Web-based PM Tool,5229,64071,ICT Software,158.86,,IMD
30/04/2019,Direct Access Automation,Door finger guards,100021,60201,Maintenance Buildings,342.00,,One Leisure Huntingdon
30/04/2019,Amazon,project accessories,100021,60201,Maintenance Buildings,23.98,,One Leisure Huntingdon
30/04/2019,Amazon,project accessories,100021,60201,Maintenance Buildings,15.96,,One Leisure Huntingdon
30/04/2019,Amazon,project accessories,100021,60201,Maintenance Buildings,9.98,,One Leisure Huntingdon
30/04/2019,Amazon,WIPE CLEAN PVC TABLE CLOTHS CREDIT,4050,61713,Equipment,-27.13,,One Leisure St Ives
30/04/2019,Mailchimp,Marketing ?,4010,62005,"Advertising, Publicity and Marketing",46.88,,One Leisure Huntingdon
30/04/2019,1&1 Internet Ltd,Domain Registration,5225,64071,ICT Software,30.12,,IMD
30/04/2019,1&1 Internet Ltd,Domain Registration,5225,64071,ICT Software,-30.12,,IMD
30/04/2019,1&1 Internet Ltd,Domain - councillor.online,5229,64071,ICT Software,30.12,,IMD
02/05/2019,Facebook,Facebook Advertising - OLH Right Start Aqua,4108,62005,"Advertising, Publicity and Marketing",14.00,,Active Leisure
03/05/2019,PRO CHEM CO UK,STAIN PRO BURGESS HALL,4050,61300,Cleaning Materials,87.60,,One Leisure St Ives
03/05/2019,Tesco,Equipment,4075,61713,Equipment,5.30,,One Leisure Huntingdon
03/05/2019,Magiboards Ltd,Magnetic Whiteboards,4129,61713,Equipment,326.70,,Operations
03/05/2019,Vista Print,Signature Stamp,4138,62002,Stationery,18.28,,Corporate Office
03/05/2019,Travelodge,Temporary Accommodation,H4634,64401,B&B Accomodation,856.00,,Housing
03/05/2019,Tesco,Catering Materials,4071,61900,Catering Supplies,5.30,,One Leisure Huntingdon
03/05/2019,Tesco,Equipment,4075,61713,Equipment,-5.30,,One Leisure Huntingdon
04/05/2019,Facebook,Marketing,4010,62005,"Advertising, Publicity and Marketing",40.00,,One Leisure Huntingdon
05/05/2019,WM Wholesale,ipod case,4033,61713,Equipment,8.00,,One Leisure Huntingdon
07/05/2019,ASPHALTIC ROOFING,ARMSTRONG TEGULAR TILES,4055,60201,Maintenance Buildings,492.58,,One Leisure St Ives
07/05/2019,Sainsbury's,Induction refreshments,4145,61903,Hospitality,5.84,,Corporate Office
07/05/2019,BOXERCISE.CO.UK,BOXERCISE LEICESTER,4030,62000,"Clothes, Uniform and Laundry",278.00,,One Leisure St Ives
09/05/2019,Screwfix,Materials for HCP,4119,61709,Materials,133.11,,Country Services
09/05/2019,Amazon,Equipment,4075,61713,Equipment,139.90,,One Leisure Huntingdon
09/05/2019,Lanheim (via Amazon),Iphone metal case,4119,61713,Equipment,21.48,,Country Services
09/05/2019,Screwfix,Tyre inflator/spring,4119,61713,Equipment,31.76,,Country Services
09/05/2019,CATERING APPLIANCE,FRONT LOAD WASH MACHINE,100024,61713,Equipment,334.00,,One Leisure St Ives
09/05/2019,CATERING APPLIANCE,FRONT LOAD WASH MACHINE,100024,61713,Equipment,500.00,,One Leisure St Ives
09/05/2019,Microsoft,6x MS 365 E3 Licences,5237,64071,ICT Software,168.60,,IMD
09/05/2019,Cross Keys Homes,RIA,H4509,64403,Homeless Prevention Payments,222.56,,Housing
09/05/2019,Cross Keys Homes,RIA,H4509,64405,Rental Deposit Loan,222.56,,Housing
09/05/2019,Cross Keys Homes,RIA,H4552,64405,Rental Deposit Loan,184.68,,Housing
09/05/2019,Cross Keys Homes,RIA,H4655,64405,Rental Deposit Loan,408.10,,Housing
09/05/2019,Amazon,10 x Shower Trays,4075,60201,Maintenance Buildings,139.90,,One Leisure Huntingdon
09/05/2019,Amazon,Equipment,4075,61713,Equipment,-139.90,,One Leisure Huntingdon
10/05/2019,Massimodutti.com,Equipment,4075,61713,Equipment,53.45,,One Leisure Huntingdon
10/05/2019,Adobe,Marketing,4010,62005,"Advertising, Publicity and Marketing",49.94,,One Leisure Huntingdon
10/05/2019,Massimo Dutti,Replace customers damaged clothing ,4075,62000,"Clothes, Uniform and Laundry",53.45,,One Leisure Huntingdon
10/05/2019,Massimodutti.com,Equipment,4075,61713,Equipment,-53.45,,One Leisure Huntingdon
11/05/2019,WM MORRISONS,BURGESS CATERING ITEMS,4049,61900,Catering Supplies,11.78,,One Leisure St Ives
11/05/2019,Vistaprint,Advertising materials for events,4119,62005,"Advertising, Publicity and Marketing",255.99,,Country Services
13/05/2019,WM MORRISONS,PLANTS SITE CENTRE,4055,60503,Grounds Maintenance,19.00,,One Leisure St Ives
13/05/2019,Amazon,Glass Screen Protector,4327,61713,Equipment,19.98,,Operations
13/05/2019,Safety Lifting Gear,Retractable Tool Lanyard,4327,61713,Equipment,20.27,,Operations
13/05/2019,Allies Computing,"Postcode Search - 10,000 credits",5225,64071,ICT Software,432.00,,IMD
13/05/2019,1&1 Internet Ltd,Domain - camcit.co,5227,64071,ICT Software,41.99,,IMD
13/05/2019,1&1 Internet Ltd,Domain - mycouncillors.uk,5229,64071,ICT Software,11.99,,IMD
13/05/2019,J2 Efax Plus Service,eFax Service for City,5222,64077,Landline Rental,19.20,,IMD
14/05/2019,Amazon,Equipment,4075,61713,Equipment,-27.98,,One Leisure Huntingdon
14/05/2019,Amazon Prime,Amazon Prime,4108,61713,Equipment,7.99,,Active Leisure
14/05/2019,Amazon,Waterproof phone pouch dry bag,4327,61713,Equipment,19.98,,Operations
14/05/2019,Amazon,Anti-glare screen protector film,4327,61713,Equipment,15.90,,Operations
14/05/2019,Amazon,Tablet case holder,4327,61713,Equipment,14.37,,Operations
14/05/2019,canva,Marketing,4010,62005,"Advertising, Publicity and Marketing",7.94,,One Leisure Huntingdon
14/05/2019,Amazon,Return 2 defective shower trays,4075,60201,Maintenance Buildings,-27.98,,One Leisure Huntingdon
14/05/2019,Amazon,Equipment,4075,61713,Equipment,27.98,,One Leisure Huntingdon
15/05/2019,H G Pell & Sons,Equipment,4075,61713,Equipment,36.00,,One Leisure Huntingdon
15/05/2019,Tesco,Equipment,4075,61713,Equipment,26.00,,One Leisure Huntingdon
15/05/2019,Sainsbury's,Local Plan gifts,4135,61903,Hospitality,40.00,,Corporate Office
15/05/2019,Eventbrite/LSCC,Conference,4135,64300,Conference Expenses,118.80,,Corporate Office
15/05/2019,School Bottle/NDA,Euro Elections,4502,69150,Other Services,225.00,,Corporate Office
15/05/2019,H G Pell,"Plants, hanging backets, compost",4075,61709,Materials,36.00,,One Leisure Huntingdon
15/05/2019,Tesco,"Plants, hanging backets, compost",4075,61709,Materials,26.00,,One Leisure Huntingdon
15/05/2019,H G Pell & Sons,Equipment,4075,61713,Equipment,-36.00,,One Leisure Huntingdon
15/05/2019,Tesco,Equipment,4075,61713,Equipment,-26.00,,One Leisure Huntingdon
16/05/2019,Oxpens Car Park,Parking,4145,60012,Employee Allowances,5.00,,Corporate Office
16/05/2019,TSGN,Rail Ticket (Thames Link and Great Northern) - Training Course in London,4164,60012,Employee Allowances,47.10,,Corporate Office
16/05/2019,Greentech (via Ebay),Newt Fencing,4119,61709,Materials,342.00,,Country Services
16/05/2019,P Kelly,OLH Sundries,4022,61713,Equipment,23.95,,One Leisure Huntingdon
16/05/2019,WM MORRISONS,BURGESS CATERING ITEMS,4049,61900,Catering Supplies,20.60,,One Leisure St Ives
16/05/2019,Travelodge,Temporary Accommodation,H4634,64401,B&B Accomodation,418.00,,Housing
18/05/2019,Terry's Heel Bar,Keys cut for staff,4119,61709,Materials,57.00,,Country Services
18/05/2019,Adobe,Marketing,4010,62005,"Advertising, Publicity and Marketing",41.62,,One Leisure Huntingdon
21/05/2019,Becky Adlington Training,Training,5220,60115,Staff Training and Devlopment,350.00,,Human Resources
21/05/2019,Linemarkerpaint.co.uk,Line Marking Paint,4362,60273,Site Alterations,97.19,,Operations
21/05/2019,Be My Bear,OLH Sundries,4041,61709,Materials,51.48,,One Leisure Huntingdon
21/05/2019,WM MORRISONS,BURGESS CATERING ITEMS,4049,61900,Catering Supplies,15.34,,One Leisure St Ives
21/05/2019,Tom's Cakes,Induction refreshments,4145,61903,Hospitality,12.00,,Corporate Office
21/05/2019,Martlet Homes,RIA,H4460,64405,Rental Deposit Loan,209.68,,Housing
21/05/2019,Poundland,Euro Elections,4502,69150,Other Services,20.00,,Corporate Office
21/05/2019,Sainsbury's,Euro Elections,4502,69150,Other Services,31.00,,Corporate Office
22/05/2019,Amazon,Equipment,4075,61713,Equipment,7.99,,One Leisure Huntingdon
22/05/2019,XL Displays,Display Boards & Carry Bag,4101,61713,Equipment,147.00,,Active Leisure
22/05/2019,Inter-Continental Hotels,Conference,4156,62005,"Advertising, Publicity and Marketing",100.00,,Corporate Office
22/05/2019,Amazon,1x Lightning to HDMI Connector,5223,64070,ICT Hardware,17.63,,IMD
22/05/2019,Amazon,1x Lightning to HDMI Connector,5224,64070,ICT Hardware,17.63,,IMD
22/05/2019,Poundland,Euro Elections,4502,69150,Other Services,13.00,,Corporate Office
22/05/2019,Amazon,Prime Subscription,4075,60410,Licences,7.99,,One Leisure Huntingdon
22/05/2019,Amazon,Equipment,4075,61713,Equipment,-7.99,,One Leisure Huntingdon
23/05/2019,New Era Ltd,Training,5220,60115,Staff Training and Devlopment,4.95,,Human Resources
23/05/2019,Amazon,1x Lenovo Miix Charge Cable,5222,64070,ICT Hardware,9.97,,IMD
23/05/2019,Amazon,2x Mini DisplayPort to HDMI,5223,64070,ICT Hardware,15.05,,IMD
23/05/2019,Amazon,2x Mini DisplayPort to HDMI,5224,64070,ICT Hardware,15.05,,IMD
23/05/2019,APCC,2x UPS Batteries for One Leisure,5224,64070,ICT Hardware,139.98,,IMD
23/05/2019,APCC,UPS Battery for One Leisure,5224,64070,ICT Hardware,69.99,,IMD
23/05/2019,Mailchimp,Automated email Subscription for City,5222,64071,ICT Software,55.87,,IMD
23/05/2019,Dominos Pizza,Euro Elections,4502,69150,Other Services,56.97,,Corporate Office
24/05/2019,AMAZON MKT PLACE,CALENDAR BURGESS DRYWIPE,4055,62002,Stationery,4.84,,One Leisure St Ives
24/05/2019,Travelodge,Temporary Accommodation,H4634,64401,B&B Accomodation,118.00,,Housing
25/05/2019,Gmex,HDMI Cable,4033,61713,Equipment,5.99,,One Leisure Huntingdon
26/05/2019,I stock,Marketing,4010,62005,"Advertising, Publicity and Marketing",70.00,,One Leisure Huntingdon
26/05/2019,Hootsuite,Marketing,4010,62005,"Advertising, Publicity and Marketing",142.80,,One Leisure Huntingdon
26/05/2019,Atlassian,Cloud and JIRA Services,5225,64071,ICT Software,24.42,,IMD
27/05/2019,Github,Monthly Subscription for 7 Licences,5225,64071,ICT Software,35.00,,IMD
28/05/2019,Lanheim (via Amazon),Iphone metal case,4119,61713,Equipment,-3.49,,Country Services
29/05/2019,Nasreenakht,Power cable,4033,61713,Equipment,2.84,,One Leisure Huntingdon
29/05/2019,Sainsbury's,Induction refreshments,4145,61903,Hospitality,5.25,,Corporate Office
30/05/2019,CLUBKING LTD,DABBERS RESALE,4050,61400,Goods for Resale,150.87,,One Leisure St Ives
30/05/2019,AMAZON MKT PLACE,GRAFTER KNEE PADS,4050,61709,Materials,7.99,,One Leisure St Ives
30/05/2019,CLUBKING LTD,BINGO TICKETS,4050,61709,Materials,137.87,,One Leisure St Ives
30/05/2019,AMAZON MKT PLACE,MAGNETIC FLY SCREEN,4052,61709,Materials,12.24,,One Leisure St Ives
30/05/2019,AMAZON MKT PLACE,MAGNETIC FLY SCREEN,4071,61709,Materials,12.23,,One Leisure St Ives
31/05/2019,Patchwork Ba,Training,5220,60115,Staff Training and Devlopment,11.49,,Human Resources
31/05/2019,Mailchimp,Marketing,4010,62005,"Advertising, Publicity and Marketing",48.06,,One Leisure Huntingdon
02/06/2019,AMAZON MKT PLACE,MAGNETIC LABEL ROLL GLOSS WHITE,4050,61709,Materials,23.88,,One Leisure St Ives
03/06/2019,AMAZON MKT PLACE,4 @ CLASSIC POLO SHIRTS BURG,4050,62000,"Clothes, Uniform and Laundry",25.16,,One Leisure St Ives
04/06/2019,Wilko,Training,5220,60115,Staff Training and Devlopment,1.00,,Human Resources
04/06/2019,Poundland,Training,5220,60115,Staff Training and Devlopment,12.00,,Human Resources
04/06/2019,DVLA,VED,Redacted,60907,Other Vehicle Costs,262.50,,Operations
04/06/2019,DVLA,VED,Redacted,60907,Other Vehicle Costs,262.50,,Operations
04/06/2019,DVLA,VED,Redacted,60907,Other Vehicle Costs,262.50,,Operations
04/06/2019,DVLA,VED,Redacted,60907,Other Vehicle Costs,262.50,,Operations
04/06/2019,Digicert,SSL Certificate,5229,64071,ICT Software,161.25,,IMD
06/06/2019,Card Factory,Training,5220,60115,Staff Training and Devlopment,20.38,,Human Resources
06/06/2019,EASY LOCKS LTD,EZLOK DISABLED TOILET KEY LOCKS ,4055,60201,Maintenance Buildings,219.50,,One Leisure St Ives
06/06/2019,B & Q,Equipment,4033,61713,Equipment,45.00,,One Leisure Huntingdon
06/06/2019,Sainsbury's,Hospitality,4145,61903,Hospitality,18.78,,Corporate Office
06/06/2019,HDCV Security Services,Company Registration,6999,64800,Membersip and Subscription,13.00,,Corporate Office
07/06/2019,Westmidstrain,Travel to conference,4145,60012,Employee Allowances,6.60,,Corporate Office
07/06/2019,SPECSAVERS UK,20 ea EYECARE PREM CLB & VDU VOUCH,5219,61709,Materials,340.00,,One Leisure St Ives
07/06/2019,AMAZON MKT PLACE,ENERGIZER LITHIUM BATTERY ZEST,4052,61713,Equipment,2.03,,One Leisure St Ives
09/06/2019,Amazon,8x TP-Link Wireless Adapters,5222,64070,ICT Hardware,43.52,,IMD
10/06/2019,Hinchingbrooke Healthcare,Parking,4145,60012,Employee Allowances,2.90,,Corporate Office
10/06/2019,Alex's Caf� & Restaurant,Training,5220,60115,Staff Training and Devlopment,39.60,,Human Resources
10/06/2019,Xylem,Replacement Castell F2 key,5103,60201,Maintenance Buildings,102.00,,Operations
10/06/2019,Tradepoint (B&Q),Materials for painting toilets at HCP,4119,61709,Materials,99.70,,Country Services
10/06/2019,Amazon Resources,Books and Publications,4139,62003,"Books, Publications",35.03,,Community Services
10/06/2019,Adobe,Marketing,4010,62005,"Advertising, Publicity and Marketing",49.94,,One Leisure Huntingdon
10/06/2019,Vistaprint,Event flags,4119,62005,"Advertising, Publicity and Marketing",70.98,,Country Services
11/06/2019,Marks & Spencer,Training,5220,60115,Staff Training and Devlopment,22.58,,Human Resources
11/06/2019,Wilko,Training,5220,60115,Staff Training and Devlopment,1.00,,Human Resources
11/06/2019,AMAZON MKT PLACE,10 WATER AEROBIC DUMBBELLS,4060,61713,Equipment,99.90,,One Leisure St Ives
11/06/2019,Digicert,SSL Certificate,5227,64071,ICT Software,177.16,,IMD
11/06/2019,Travelodge,Temporary Accommodation,H4604,64401,B&B Accomodation,188.00,,Housing
12/06/2019,The Knowledge base academy,PRINCE2 Workbook,5229,60115,Staff Training and Devlopment,30.00,,IMD
12/06/2019,Bitrix,Web-based PM Tool,5229,64071,ICT Software,161.57,,IMD
12/06/2019,Kalnet4u Ltd,3C Building Control ,5222,64077,Landline Rental,17.99,,IMD
13/06/2019,AMAZON MKT PLACE,FLEX MAG LABEL ROLL @ 3 dry wipe,4050,61709,Materials,40.31,,One Leisure St Ives
13/06/2019,J2 Efax Plus Service,eFax Service for City,5222,64071,ICT Software,19.20,,IMD
13/06/2019,Digicert,*.scambs.gov.uk - Wildcard SSL,5228,64071,ICT Software,430.95,,IMD
14/06/2019,canva,Marketing,4010,62005,"Advertising, Publicity and Marketing",8.14,,One Leisure Huntingdon
14/06/2019,provisio.com,Site-Kiosk Licence,5222,64071,ICT Software,136.81,,IMD
14/06/2019,Classmarker.com,Knowledge Test - Licencing,5224,64071,ICT Software,324.17,,IMD
14/06/2019,Amazon,Prime Membership,4106,64800,Membersip and Subscription,7.99,,Active Leisure
17/06/2019,Swimming.org,Equipment,4033,61713,Equipment,395.00,,One Leisure Huntingdon
17/06/2019,Boxercise,Equipment,4033,61713,Equipment,80.00,,One Leisure Huntingdon
17/06/2019,POST OFFICE COUNTER,20 1ST 20 2ND CLASS STAMPS,4055,64100,Postage and Couriers,26.20,,One Leisure St Ives
18/06/2019,Water Coolers,Annual Env Charge,4075,61700,Hire Equipment,26.40,,One Leisure St Ives
18/06/2019,Aims Sales Ltd,Equipment,4033,61713,Equipment,5.92,,One Leisure Huntingdon
18/06/2019,One X Sport,Equipment,4033,61713,Equipment,25.90,,One Leisure Huntingdon
18/06/2019,Adobe,Marketing,4010,62005,"Advertising, Publicity and Marketing",41.62,,One Leisure Huntingdon
18/06/2019,B2B Quote  Ltd,HDCV SSL Quote Tracking,6999,64800,Membersip and Subscription,414.00,,Community Services
20/06/2019,AMAZON MKT PLACE,"2 @ 12"" ELEC OFFICE FAN",4050,61713,Equipment,31.98,,One Leisure St Ives
20/06/2019,AMAZON MKT PLACE,3 @ PARASOL BASE GREEN,4050,61713,Equipment,44.91,,One Leisure St Ives
20/06/2019,AMAZON MKT PLACE,3 @ PARASOL GDN UMBRELLA,4050,61713,Equipment,80.94,,One Leisure St Ives
20/06/2019,AMAZON MKT PLACE,2 @ XL ROYAL POLO,4050,62000,"Clothes, Uniform and Laundry",10.95,,One Leisure St Ives
20/06/2019,Travelodge,Temporary Accommodation,H4680,64401,B&B Accomodation,49.00,,Housing
21/06/2019,AMAZON MKT PLACE,4 @ PLASTIC SWING RUBBISH BIN,4050,61713,Equipment,54.84,,One Leisure St Ives
21/06/2019,AMAZON MKT PLACE,1 @ ROYAL POLO MEDIUM,4050,62000,"Clothes, Uniform and Laundry",5.30,,One Leisure St Ives
22/06/2019,Amazon,Equipment,4075,61713,Equipment,7.99,,One Leisure Huntingdon
22/06/2019,Amazon,Prime Subscription,4075,60410,Licences,7.99,,One Leisure Huntingdon
22/06/2019,Amazon,Equipment,4075,61713,Equipment,-7.99,,One Leisure Huntingdon
23/06/2019,mailchimp,Automated email Subscription for City,5222,64071,ICT Software,55.79,,IMD
24/06/2019,TSGN,Travel to conference,4145,60012,Employee Allowances,47.10,,Corporate Office
24/06/2019,Amazon,Training,5220,60115,Staff Training and Devlopment,35.93,,Human Resources
24/06/2019,Amazon,Training,5220,60115,Staff Training and Devlopment,6.99,,Human Resources
24/06/2019,Amazon,Training,5220,60115,Staff Training and Devlopment,82.44,,Human Resources
24/06/2019,B & Q,Equipment,4075,61713,Equipment,22.14,,One Leisure Huntingdon
24/06/2019,WWW.TESTALLWATER,LOVIBOND CALCIUM & ALKALINE TABS,4055,64000,Chemicals,153.55,,One Leisure St Ives
24/06/2019,axosoft,Software Tool,5229,64071,ICT Software,4.78,,IMD
24/06/2019,B & Q,Equipment,4075,61713,Equipment,-22.14,,One Leisure Huntingdon
25/06/2019,Amazon,Training,5220,60115,Staff Training and Devlopment,67.46,,Human Resources
25/06/2019,Linkedin,Job advert on Linkedin,5096,60116,Staff Recruitment,178.72,,Planning
25/06/2019,EUREKADIRECT.CO.UK,BURGESS FIRST AID BANDAGE WIPES ETC,4050,61709,Materials,131.16,,One Leisure St Ives
25/06/2019,KRD.ltd2015 via ebay,Materials for Event,4119,62900,Events,4.70,,Country Services
25/06/2019,KBT Ltd. ,Materials for Event,4119,62900,Events,19.95,,Country Services
25/06/2019,B&Q,Sealant,4075,60201,Maintenance Buildings,22.14,,One Leisure Huntingdon
26/06/2019,Amazon,Training,5220,60115,Staff Training and Devlopment,9.34,,Human Resources
26/06/2019,Amazon,Training,5220,60115,Staff Training and Devlopment,23.94,,Human Resources
26/06/2019,AMAZON MKT PLACE,1000 SELF AHD JEWELS/GEMS chrystals,4050,61709,Materials,6.19,,One Leisure St Ives
26/06/2019,AMAZON MKT PLACE,5 CHRIST TREE CANDY CANES 120PK,4050,61709,Materials,109.70,,One Leisure St Ives
26/06/2019,E-bay,Verifone VX-680 Credit Card Machine,5370,61713,Equipment,52.50,,Operations
26/06/2019,Pilgrim Foods,Caf� resources,4118,61900,Catering Supplies,9.50,,Country Services
26/06/2019,Hootsuite,Marketing,4010,62005,"Advertising, Publicity and Marketing",142.80,,One Leisure Huntingdon
26/06/2019,atlassian,Cloud and JIRA Services,5229,64071,ICT Software,24.42,,IMD
27/06/2019,Huntingdonshire District Council,Temporary Events Licence,4119,60410,Licences,21.00,,Country Services
27/06/2019,AMAZON MKT PLACE,30 CANDY STORAGE BASKET TABLE DEC,4050,61709,Materials,77.83,,One Leisure St Ives
27/06/2019,AMAZON MKT PLACE,2 @ MILK MINT CRISP CATERING PACK,4050,61709,Materials,45.98,,One Leisure St Ives
27/06/2019,AMAZON MKT PLACE,12 @ XMAS CONFETTI SUPPLIES,4050,61709,Materials,28.88,,One Leisure St Ives
27/06/2019,AMAZON MKT PLACE,10 @ 300 SNOWFLAKE TBL CONFETTI DECS,4050,61709,Materials,15.90,,One Leisure St Ives
27/06/2019,AMAZON MKT PLACE,2 @ TRAD INDOOR XMAS TREES 5FT,4050,61709,Materials,29.98,,One Leisure St Ives
27/06/2019,AMAZON MKT PLACE,4 @ 12 X SANTA HATS WITH BOBBLE,4050,61709,Materials,27.80,,One Leisure St Ives
27/06/2019,AMAZON MKT PLACE,25 @ 10 X PAPER CROWNS & 500 BLOWOUTS,4050,61709,Materials,126.18,,One Leisure St Ives
27/06/2019,AMAZON MKT PLACE,1000 SELF AHDHESIVE RHINE CRYSTALS,4050,61709,Materials,6.18,,One Leisure St Ives
27/06/2019,AMAZON MKT PLACE,12 @ REINDEER X 4 ANTLERS,4050,61709,Materials,44.08,,One Leisure St Ives
27/06/2019,istock,Marketing,4010,62005,"Advertising, Publicity and Marketing",70.00,,One Leisure Huntingdon
27/06/2019,Vistaprint,Event flags,4119,62005,"Advertising, Publicity and Marketing",338.95,,Country Services
27/06/2019,Github,Monthly Subscription for 7 Licences,5229,64071,ICT Software,34.96,,IMD
28/06/2019,fonts.com,Marketing,4010,62005,"Advertising, Publicity and Marketing",240.00,,One Leisure Huntingdon
29/06/2019,Bitrix,Web-based PM Tool,5229,64071,ICT Software,161.85,,IMD
30/06/2019,AMAZON MKT PLACE,2 @ 12 REINDEER ANTLER HEADBANDS,4050,61709,Materials,19.90,,One Leisure St Ives
30/06/2019,mailchimp,Marketing,4010,62005,"Advertising, Publicity and Marketing",47.76,,One Leisure Huntingdon
01/07/2019,Bristow Cycles,Equipment maintenance,4119,61702,"Maintenance - Equipment, Furniture and Materials",37.44,,Country Services
01/07/2019,Party Puffin,Materials for Event,4119,62900,Events,63.65,,Country Services
01/07/2019,Orchid Hotels Ltd,Conference Hotel and parking,4135,64300,Conference Expenses,"1,134.00",,Corporate Office
01/07/2019,Orchid Hotels Ltd,Conference Hotel and parking,4135,64300,Conference Expenses,30.00,,Corporate Office
01/07/2019,SIA CCTV Licence,SIA Licence,4185,64800,Membersip and Subscription,220.00,,Community Services
02/07/2019,Helping Hand,Litter pickers for site,4119,61713,Equipment,93.30,,Country Services
02/07/2019,Fens Falconry,Event display,4119,62900,Events,398.10,,Country Services
02/07/2019,BIC Terrace Caf�,Conference food,4135,64300,Conference Expenses,5.90,,Corporate Office
03/07/2019,Ioan AP,Equipment,4075,61713,Equipment,172.77,,One Leisure Huntingdon
03/07/2019,Amazon,Equipment,4075,61713,Equipment,39.95,,One Leisure Huntingdon
03/07/2019,Facebook ,Facebook Advertising,4108,62005,"Advertising, Publicity and Marketing",8.14,,Active Leisure
03/07/2019,Ioanap,3 x iPod touch,4076,61713,Equipment,172.77,,One Leisure Huntingdon
03/07/2019,Amazon,Waterproof iPod covers,4076,61713,Equipment,39.95,,One Leisure Huntingdon
03/07/2019,Ioan AP,Equipment,4075,61713,Equipment,-172.77,,One Leisure Huntingdon
03/07/2019,Amazon,Equipment,4075,61713,Equipment,-39.95,,One Leisure Huntingdon
04/07/2019,DVLA ,DUPLICATE REGISTRATION - NO RECEIPT GIVEN,4063,60907,Other Vehicle Costs,25.00,,One Leisure St Ives
04/07/2019,Ipod covers,Equipment,4033,61713,Equipment,8.97,,One Leisure Huntingdon
05/07/2019,CMI,Training resources,5220,60115,Staff Training and Devlopment,211.00,,Human Resources
05/07/2019,Arboricultural Association,Intermediate Tree Inspection Course,5220,60115,Staff Training and Devlopment,350.00,,Operations
06/07/2019,6x MS 365 E3 Licences,CA - SCDC Sharepoint,5237,64071,ICT Software,168.60,,IMD
07/07/2019,Survey Monkey Membership,Survey Monkey Membership,5271,64800,Membersip and Subscription,240.00,,Community Services
08/07/2019,Amazon refund,Refund for a book,5220,60115,Staff Training and Devlopment,-6.99,,Human Resources
08/07/2019,DVLA - Vehicle Excise Duty,Vehicle Excise Duty,Redacted,60905,Vehicle Licence,262.50,,Operations
08/07/2019,DVLA - Vehicle Excise Duty,Vehicle Excise Duty,Redacted,60905,Vehicle Licence,404.50,,Operations
08/07/2019,DVLA - Vehicle Excise Duty,Vehicle Excise Duty,Redacted,60905,Vehicle Licence,617.50,,Operations
08/07/2019,Vehicle Excise Duty,DVLA,Redacted,60905,Vehicle Licence,617.50,,Operations
08/07/2019,Vehicle Excise Duty,DVLA,Redacted,60905,Vehicle Licence,262.50,,Operations
08/07/2019,AMAZON MKT PLACE,CREDIT REFUNDED,4050,61713,Equipment,-17.99,,One Leisure St Ives
08/07/2019,Screwfix - Padlocks,6 x 46mm Combination Padlocks,4362,61713,Equipment,89.95,,Operations
08/07/2019,TESCO STORE,BURGESS GROCERIES ETC,4049,61900,Catering Supplies,53.53,,One Leisure St Ives
08/07/2019,TESCO STORE,BURGESS GROCERIES ETC,4049,61900,Catering Supplies,2.17,,One Leisure St Ives
08/07/2019,BCS Membership,ICT Staff Member,5229,64071,ICT Software,90.00,,IMD
09/07/2019,Eazy-print ,Eazy-print Concessionary Banners,4108,62005,"Advertising, Publicity and Marketing",99.00,,Active Leisure
09/07/2019,Amazon ,Amazon credit,4106,64800,Membersip and Subscription,-7.99,,Active Leisure
10/07/2019,Portable sterio,Equipment,4033,61713,Equipment,249.20,,One Leisure Huntingdon
10/07/2019,Tesco,Equipment,4075,61713,Equipment,18.41,,One Leisure Huntingdon
10/07/2019,WM MORRISONS,BURGESS GROCERIES ETC,4049,61900,Catering Supplies,0.58,,One Leisure St Ives
10/07/2019,WM MORRISONS,BURGESS GROCERIES ETC,4049,61900,Catering Supplies,70.07,,One Leisure St Ives
10/07/2019,Aldi,Event materials,4119,62900,Events,45.78,,Country Services
10/07/2019,3C Building Control ,0300 number,5222,64077,Landline Rental,14.99,,IMD
10/07/2019,Vodafone Limited ,RIA, H3334,64403,Homeless Prevention Payments,10.83,,Housing
10/07/2019,Companies House,Regstration for HDC Ventures,6999,64800,Membersip and Subscription,13.00,,Corporate Office
10/07/2019,Tesco,Tractor Fuel,4074,60902,Fuel,18.41,,One Leisure Huntingdon
10/07/2019,Tesco,Equipment,4075,61713,Equipment,-18.41,,One Leisure Huntingdon
11/07/2019,TICKETSOURCE LTD,5 @ WHITE THERMAL TICKET STOCK,4050,61709,Materials,56.75,,One Leisure St Ives
11/07/2019,Adobe,Marketing,4010,62005,"Advertising, Publicity and Marketing",49.94,,One Leisure Huntingdon
13/07/2019,eFax Service for City,Camb City,5222,64071,ICT Software,16.00,,IMD
14/07/2019,canva,Marketing,4010,62005,"Advertising, Publicity and Marketing",8.18,,One Leisure Huntingdon
15/07/2019,Gen Register Officer,RIA, H4665,64403,Homeless Prevention Payments,38.00,,Housing
16/07/2019,M&S,Cabinet Away Day - Hospitality,4145,61903,Hospitality,38.80,,Corporate Office
16/07/2019,Wilko,Glasses - Hospitality,4145,61903,Hospitality,5.00,,Corporate Office
17/07/2019,Amazon,Equipment,4032,60201,Maintenance Buildings,16.72,,One Leisure Huntingdon
17/07/2019,equipment,Equipment,4033,61713,Equipment,9.95,,One Leisure Huntingdon
17/07/2019,AMAZON MKT PLACE,1 PK 4 ADJ CHEF APRON OLSN,4071,62000,"Clothes, Uniform and Laundry",12.49,,One Leisure St Ives
17/07/2019,AMAZON MKT PLACE,VARIOUS HALF SHORT APRONS OLSI,4052,62000,"Clothes, Uniform and Laundry",66.56,,One Leisure St Ives
17/07/2019,Travelodge,Temporary Accommodation, H4704,64401,B&B Accomodation,77.50,,Housing
18/07/2019,Tesco,Equipment,4075,61713,Equipment,13.68,,One Leisure Huntingdon
18/07/2019,Travelodge,Temporary Accommodation, H4704,64401,B&B Accomodation,42.50,,Housing
18/07/2019,Travelodge,Temporary Accommodation, H4590,64401,B&B Accomodation,359.17,,Housing
18/07/2019,Tesco,Tractor Fuel,4074,60902,Fuel,13.68,,One Leisure Huntingdon
18/07/2019,Tesco,Equipment,4075,61713,Equipment,-13.68,,One Leisure Huntingdon
19/07/2019,Adobe,Marketing,4010,62005,"Advertising, Publicity and Marketing",41.62,,One Leisure Huntingdon
19/07/2019,bereavement.cambridge.gov.uk,SSL Certificate,5227,64071,ICT Software,179.88,,IMD
19/07/2019,GitKraken Licence,Digital Team,5529,64071,ICT Software,2.10,,IMD
19/07/2019,Muir Group,RIA, H4694,64405,Rental Deposit Loan,191.96,,Housing
21/07/2019,Amazon,Equipment,4075,61713,Equipment,10.60,,One Leisure Huntingdon
21/07/2019,Screwfix,Equipment,4075,61713,Equipment,8.99,,One Leisure Huntingdon
21/07/2019,Amazon,Thermometer / Hygrometer,4075,61713,Equipment,10.60,,One Leisure Huntingdon
21/07/2019,Screwfix,Toilet parts,4075,60201,Maintenance Buildings,8.99,,One Leisure Huntingdon
21/07/2019,Amazon,Equipment,4075,61713,Equipment,-10.60,,One Leisure Huntingdon
21/07/2019,Screwfix,Equipment,4075,61713,Equipment,-8.99,,One Leisure Huntingdon
22/07/2019,B & Q,7 @ DULIX PAINT BURGESS,4050,60201,Maintenance Buildings,140.00,,One Leisure St Ives
22/07/2019,Skip hire,Equipment,4032,60201,Maintenance Buildings,260.00,,One Leisure Huntingdon
22/07/2019,TESCO STORE,BOUQUET VASE BURGESS,4050,61713,Equipment,5.00,,One Leisure St Ives
22/07/2019,Amazon,Equipment,4075,61713,Equipment,7.99,,One Leisure Huntingdon
22/07/2019,Amazon,Prime Subscription,4075,60410,Licences,7.99,,One Leisure Huntingdon
22/07/2019,Amazon,Equipment,4075,61713,Equipment,-7.99,,One Leisure Huntingdon
23/07/2019,South Cambs DC,Course,5220,60115,Staff Training and Devlopment,100.00,,Human Resources
23/07/2019,B & Q,Equipment,4032,60201,Maintenance Buildings,28.09,,One Leisure Huntingdon
23/07/2019,Screwfix,Equipment,4075,61713,Equipment,4.49,,One Leisure Huntingdon
23/07/2019,Argos,Equipment,4075,61713,Equipment,9.99,,One Leisure Huntingdon
23/07/2019,WM MORRISONS,3 @ PARASOL BASE GREEN,4049,61900,Catering Supplies,9.09,,One Leisure St Ives
23/07/2019,M&S,Working lunch - Hospitality,4145,61903,Hospitality,13.00,,Corporate Office
23/07/2019,Automated email Subscription for City,Camb City,5222,64071,ICT Software,56.63,,IMD
23/07/2019,Screwfix,Toilet parts,4075,60201,Maintenance Buildings,4.49,,One Leisure Huntingdon
23/07/2019,Argos,Creche toys,4070,61713,Equipment,9.99,,One Leisure Huntingdon
23/07/2019,Screwfix,Equipment,4075,61713,Equipment,-4.49,,One Leisure Huntingdon
23/07/2019,Argos,Equipment,4075,61713,Equipment,-9.99,,One Leisure Huntingdon
24/07/2019,Be My Bear,Equipment,4021,61709,Materials,86.32,,One Leisure Huntingdon
24/07/2019,Amazon,Equipment,4075,61713,Equipment,16.99,,One Leisure Huntingdon
24/07/2019,Travelodge,Temporary Accommodation, H4590,64401,B&B Accomodation,299.17,,Housing
24/07/2019,Amazon,Hoover parts,4075,60201,Maintenance Buildings,16.99,,One Leisure Huntingdon
24/07/2019,Amazon,Equipment,4075,61713,Equipment,-16.99,,One Leisure Huntingdon
25/07/2019,DVLA - Vehicle Excise Duty,Vehicle Excise Duty,Redacted,60905,Vehicle Licence,617.50,,Operations
25/07/2019,DVLA - Vehicle Excise Duty,Vehicle Excise Duty,Redacted,60905,Vehicle Licence,262.50,,Operations
25/07/2019,DVLA - Vehicle Excise Duty,Vehicle Excise Duty,Redacted,60905,Vehicle Licence,262.50,,Operations
25/07/2019,DVLA - Vehicle Excise Duty,Vehicle Excise Duty,Redacted,60905,Vehicle Licence,617.50,,Operations
25/07/2019,DVLA - Vehicle Excise Duty,Vehicle Excise Duty,Redacted,60905,Vehicle Licence,617.50,,Operations
25/07/2019,DVLA - Vehicle Excise Duty,Vehicle Excise Duty,Redacted,60905,Vehicle Licence,262.50,,Operations
25/07/2019,DVLA - Vehicle Excise Duty,Vehicle Excise Duty,Redacted,60905,Vehicle Licence,262.50,,Operations
25/07/2019,DVLA - Vehicle Excise Duty,Vehicle Excise Duty,Redacted,60905,Vehicle Licence,262.50,,Operations
25/07/2019,DVLA - Vehicle Excise Duty,Vehicle Excise Duty,Redacted,60905,Vehicle Licence,262.50,,Operations
25/07/2019,Vehicle Excise Duty,DVLA,Redacted,60905,Vehicle Licence,617.50,,Operations
25/07/2019,Vehicle Excise Duty,DVLA,Redacted,60905,Vehicle Licence,262.50,,Operations
25/07/2019,Vehicle Excise Duty,DVLA,Redacted,60905,Vehicle Licence,617.50,,Operations
25/07/2019,Vehicle Excise Duty,DVLA,Redacted,60905,Vehicle Licence,617.50,,Operations
25/07/2019,Vehicle Excise Duty,DVLA,Redacted,60905,Vehicle Licence,262.50,,Operations
25/07/2019,Vehicle Excise Duty,DVLA,Redacted,60905,Vehicle Licence,262.50,,Operations
25/07/2019,30 Clinical Waste bins 22 each,Yellow Shield,100040,61200,Refuse Containers,660.00,,Operations
25/07/2019,Amazon,Kids Hol Activities,4055,61713,Equipment,20.00,,One Leisure St Ives
25/07/2019,Cloud and JIRA Services,Digital Team,5229,64071,ICT Software,24.96,,IMD
26/07/2019,Pilgrims,Ice cream freezer,4057,61713,Equipment,375.00,,One Leisure St Ives
26/07/2019,Pilgrims,Ice cream stock,4057,61906,Hospitality,104.00,,One Leisure St Ives
26/07/2019,I stock,Marketing,4010,62005,"Advertising, Publicity and Marketing",70.00,,One Leisure Huntingdon
27/07/2019,Drop Box,Marketing,4010,62005,"Advertising, Publicity and Marketing",9.99,,One Leisure Huntingdon
27/07/2019,Monthly Subscription for 7 Licences,Digital Team,5229,64071,ICT Software,35.78,,IMD
28/07/2019,amazon,Equipment,4032,60201,Maintenance Buildings,37.41,,One Leisure Huntingdon
28/07/2019,Amazon,Kids Hol Activities,4055,61713,Equipment,49.88,,One Leisure St Ives
29/07/2019,amazon,Equipment,4032,60201,Maintenance Buildings,7.65,,One Leisure Huntingdon
29/07/2019,Line Marker Paint,Line Marker Paint,4362,60273,Site Alterations,217.99,,Operations
29/07/2019,E-Bay,Water bottles for waste staff,4343,61709,Materials,167.90,,Operations
29/07/2019,E-Bay,Water bottles for waste staff,4346,61709,Materials,167.90,,Operations
29/07/2019,E-Bay,Water bottles for waste staff,4317,61709,Materials,167.90,,Operations
29/07/2019,MARK HARROD LTD,3MM WHITE KNOTTED NETS & SHIPPING OC,4063,61713,Equipment,95.00,,One Leisure St Ives
29/07/2019,Amazon,Kids Hol Activities,4055,61713,Equipment,37.06,,One Leisure St Ives
29/07/2019,Hoot Suite,Marketing,4010,62005,"Advertising, Publicity and Marketing",119.00,,One Leisure Huntingdon
29/07/2019,Web-based PM Tool,July Payment,5229,64071,ICT Software,167.78,,IMD
30/07/2019,HOME BARGAINS,PEONY BUNCH CREAM @ 6 BURG,4050,61709,Materials,12.45,,One Leisure St Ives
30/07/2019,ASDA STORES,VARIOUS ITEMS BURGESS LORNA,4050,61709,Materials,42.71,,One Leisure St Ives
30/07/2019,B&M RETAIL LTD,BACKSTAGE REFURB ITEMS POTS CLOCK ETC,4050,61709,Materials,100.74,,One Leisure St Ives
30/07/2019,M&S,Staff induction - Hospitality,4145,61903,Hospitality,6.25,,Corporate Office
31/07/2019,Westminster Briefing,Conference,4143,60115,Staff Training and Devlopment,306.00,,Operations
31/07/2019,Fitness Superstore,Equipment,4075,61713,Equipment,143.93,,One Leisure Huntingdon
31/07/2019,Facebook,Marketing,4010,62005,"Advertising, Publicity and Marketing",50.00,,One Leisure Huntingdon
31/07/2019,Mail chimp,Marketing,4010,62005,"Advertising, Publicity and Marketing",41.58,,One Leisure Huntingdon
31/07/2019,Fitness Superstore,Replacement dumbells,4072,61713,Equipment,143.93,,One Leisure Huntingdon
31/07/2019,Fitness Superstore,Equipment,4075,61713,Equipment,-143.93,,One Leisure Huntingdon
01/08/2019,THORITE,SYNTH COMPRESSOR OIL - IMP,4053,61713,Equipment,25.90,,One Leisure St Ives
02/08/2019,AMAZON MKT PLACE,GORILLA GLUE - BURGESS,4050,61709,Materials,7.56,,One Leisure St Ives
02/08/2019,Lifesavers Direct,Lifesavers Direct,4033,61713,Equipment,124.75,,One Leisure Huntingdon
02/08/2019,Camera Batteries for Env Health,EH Food Safety,5224,64070,ICT Hardware,16.62,,IMD
03/08/2019,Argos,Space hoppers,4119,62005,"Advertising, Publicity and Marketing",30.00,,Country Services
03/08/2019,Tesco,Lawn games,4119,62900,Events,11.00,,Country Services
03/08/2019,Jacksons Arts,Plaster moulds,4119,62900,Events,24.42,,Country Services
04/08/2019,Amazon,Cord rope,4119,61709,Materials,41.65,,Country Services
04/08/2019,6x MS 365 E3 Licences,CA - SCDC Sharepoint,5237,64071,ICT Software,168.60,,IMD
05/08/2019,AMAZON.CO.UK,HEAVY DUTY DS MOUNTING TAPE,4055,61709,Materials,3.92,,One Leisure St Ives
05/08/2019,Sorbus international Ltd,Equipment for tree section,5282,61713,Equipment,105.41,,Planning
05/08/2019,Travelodge,Temporary Accommodation, H4590 ,64401,B&B Accomodation,-220.83,,Housing
07/08/2019,BlindParts.co.uk,Weights/chain for blinds,5190,61713,Equipment,29.20,,Operations
07/08/2019,1 & 1 Internet Ltd,1 & 1 Internet Ltd,4010,62005,"Advertising, Publicity and Marketing",14.40,,One Leisure Huntingdon
07/08/2019,GitKraken Annual for 5 Users,Digital Team,5229,64071,ICT Software,208.10,,IMD
07/08/2019,Global Protect SSL for HDC,Nwk Inf,5229,64071,ICT Software,339.64,,IMD
07/08/2019,Global Protect SSL for City,Nwk Inf,5227,64071,ICT Software,339.64,,IMD
07/08/2019,Global Protect SSL for CA,Nwk Inf,5237,64071,ICT Software,339.64,,IMD
08/08/2019,BE MY BEAR,JNR ACTIVITIES BEARS AND BIRTH CERTS,4054,61709,Materials,79.60,,One Leisure St Ives
08/08/2019,Trade UK,Trade UK,4033,61713,Equipment,91.95,,One Leisure Huntingdon
09/08/2019,CPAG,Publication Order for Housing Department,5278,62003,"Books, Publications",18.99,,Housing
10/08/2019,Adobe,Adobe,4010,62005,"Advertising, Publicity and Marketing",49.94,,One Leisure Huntingdon
12/08/2019,Safety Lifting Gear,Safety Lifting Gear,4075,61713,Equipment,11.58,,One Leisure Huntingdon
12/08/2019,Safety Lifting Gear,Eye bolts,4072,61713,Equipment,11.58,,One Leisure Huntingdon
12/08/2019,Safety Lifting Gear,Safety Lifting Gear,4075,61713,Equipment,-11.58,,One Leisure Huntingdon
13/08/2019,Tesco,Tesco,4075,61713,Equipment,2.00,,One Leisure Huntingdon
13/08/2019,Safety Lifting Gear,Safety Lifting Gear,4075,61713,Equipment,26.65,,One Leisure Huntingdon
13/08/2019,Vistaprint,Banners for 30th Birthday party of HCP,4119,62005,"Advertising, Publicity and Marketing",381.78,,Country Services
13/08/2019,eFax Service for City,Camb City,5222,64071,ICT Software,16.00,,IMD
13/08/2019,2x Infogram Licences 194.96ea,3C Staff,5229,64071,ICT Software,389.92,,IMD
13/08/2019,3C Building Control ,0300 number,5222,64077,Landline Rental,14.99,,IMD
13/08/2019,Domain - burgesshall.net,Burgess Hall,5224,64900,Registration Fee,12.50,,IMD
13/08/2019,Domain - councilanywhere.org/.online,CA,5225,64900,Registration Fee,34.00,,IMD
13/08/2019,Domain - greatercambsSP,Shared Planning,5223,64900,Registration Fee,9.40,,IMD
13/08/2019,Tesco,Cheese grater,4071,61709,Materials,2.00,,One Leisure Huntingdon
13/08/2019,Safety Lifting Gear,Eye bolts,4072,61713,Equipment,26.65,,One Leisure Huntingdon
13/08/2019,Tesco,Tesco,4075,61713,Equipment,-2.00,,One Leisure Huntingdon
13/08/2019,Safety Lifting Gear,Safety Lifting Gear,4075,61713,Equipment,-26.65,,One Leisure Huntingdon
14/08/2019,Canva,Canva,4010,62005,"Advertising, Publicity and Marketing",8.50,,One Leisure Huntingdon
15/08/2019,AMAZON MKT PLACE,BURGESS HALL - PARTY ITEMS - CHINA,4050,61709,Materials,14.48,,One Leisure St Ives
15/08/2019,Selles Medical,Evidence Bags,4185,61709,Materials,70.71,,Community Services
15/08/2019,Apple.com,Apple.com,4033,61713,Equipment,79.00,,One Leisure Huntingdon
15/08/2019,Google Cloud - Maps Search,City,5222,64900,Registration Fee,44.11,,IMD
16/08/2019,Licencing.gov.uk/HDC,Temporary Events Licence bought online,4119,60410,Licences,21.00,,Country Services
16/08/2019,Amazon,Amazon,4033,61713,Equipment,17.99,,One Leisure Huntingdon
16/08/2019,Multi-Domain SSL - SCDC,SCDC,5228,64071,ICT Software,351.32,,IMD
17/08/2019,PitkoChart,City,5227,64071,ICT Software,34.10,,IMD
18/08/2019,Adobe,Adobe,4010,62005,"Advertising, Publicity and Marketing",41.62,,One Leisure Huntingdon
19/08/2019,Protec Direct ,Protective clothing,5282,62000,"Clothes, Uniform and Laundry",65.04,,Planning
19/08/2019,Vistaprint,Banners for 2020 events advertising,4119,62005,"Advertising, Publicity and Marketing",250.93,,Country Services
19/08/2019,Vistaprint,Flyers,4119,62005,"Advertising, Publicity and Marketing",13.98,,Country Services
20/08/2019,Amazon,Adhesive Signs,4055,60201,Maintenance Buildings,9.15,,One Leisure St Ives
20/08/2019,AMAZON MKT PLACE,RESISTANCE BAND HANDLE HEAVY DUTY,4053,61702,"Maintenance - Equipment, Furniture and Materials",22.78,,One Leisure St Ives
20/08/2019,Sainsbury's,Hospitality - Marshalls Meeting,4145,61903,Hospitality,7.20,,Corporate Office
20/08/2019,Sainsbury's,Hospitality,4145,61903,Hospitality,12.50,,Corporate Office
20/08/2019,M&S,Hospitality - staff induction,4145,61903,Hospitality,8.25,,Corporate Office
21/08/2019,BAPCR,Revalidation Exam Fee,4101,60115,Staff Training and Devlopment,75.00,,Active Leisure
21/08/2019,Fosse Ltd,Fosse Ltd,5204,60907,Other Vehicle Costs,800.00,,Operations
21/08/2019,Fosse Ltd,Fosse Ltd,5204,60907,Other Vehicle Costs,520.00,,Operations
21/08/2019,DVLA,DVLA,5204,60907,Other Vehicle Costs,617.50,,Operations
21/08/2019,DVLA,DVLA,5204,60907,Other Vehicle Costs,262.50,,Operations
21/08/2019,DVLA,DVLA,5204,60907,Other Vehicle Costs,617.50,,Operations
21/08/2019,DVLA,DVLA,5204,60907,Other Vehicle Costs,262.50,,Operations
21/08/2019,DVLA,DVLA,5204,60907,Other Vehicle Costs,617.50,,Operations
21/08/2019,DVLA,DVLA,5204,60907,Other Vehicle Costs,617.50,,Operations
21/08/2019,DVLA,DVLA,5204,60907,Other Vehicle Costs,262.50,,Operations
21/08/2019,DVLA,DVLA,5204,60907,Other Vehicle Costs,262.50,,Operations
21/08/2019,Fosse Ltd,Fosse Ltd,5204,60907,Other Vehicle Costs,-800.00,,Operations
21/08/2019,Fosse Ltd,Fosse Ltd,5204,60907,Other Vehicle Costs,-520.00,,Operations
21/08/2019,DVLA,DVLA,5204,60907,Other Vehicle Costs,-617.50,,Operations
21/08/2019,DVLA,DVLA,5204,60907,Other Vehicle Costs,-262.50,,Operations
21/08/2019,DVLA,DVLA,5204,60907,Other Vehicle Costs,-617.50,,Operations
21/08/2019,DVLA,DVLA,5204,60907,Other Vehicle Costs,-262.50,,Operations
21/08/2019,DVLA,DVLA,5204,60907,Other Vehicle Costs,-617.50,,Operations
21/08/2019,DVLA,DVLA,5204,60907,Other Vehicle Costs,-617.50,,Operations
21/08/2019,DVLA,DVLA,5204,60907,Other Vehicle Costs,-262.50,,Operations
21/08/2019,DVLA,DVLA,5204,60907,Other Vehicle Costs,-262.50,,Operations
21/08/2019,30 Clinical Waste bins 22 each,Fosse Ltd,100040,61200,Refuse Containers,666.67,,Operations
21/08/2019,20 Clinical Waste bins 22 each,Fosse Ltd,100040,61200,Refuse Containers,433.33,,Operations
22/08/2019,POUNDSTRETCHER,CAN OPENER / GRIDDLE SCRAPER,4049,61713,Equipment,7.94,,One Leisure St Ives
22/08/2019,Workwear Giant,4x rucksacks for Health Walks Leaders,4104,61713,Equipment,23.35,,Active Leisure
22/08/2019,Amazon,Amazon,4075,61713,Equipment,7.99,,One Leisure Huntingdon
22/08/2019,Metropolitan Housing,RIA, H4266 ,64403,Homeless Prevention Payments,222.56,,Housing
22/08/2019,Metropolitan Housing,RIA, H4266 ,64405,Rental Deposit Loan,222.56,,Housing
22/08/2019,Amazon,Prime Subscription,4075,60410,Licences,7.99,,One Leisure Huntingdon
22/08/2019,Amazon,Amazon,4075,61713,Equipment,-7.99,,One Leisure Huntingdon
23/08/2019,AMAZON MKT PLACE,3 @5LTS EMULSION POLISH,4050,61300,Cleaning Materials,146.76,,One Leisure St Ives
23/08/2019,WM MORRISONS,1 PK 4 ADJ CHEF APRON OLSN,4049,61900,Catering Supplies,14.20,,One Leisure St Ives
23/08/2019,Vistaprint,flyers,4119,62005,"Advertising, Publicity and Marketing",25.36,,Country Services
23/08/2019,SpeckIE Tool Addon - 33x Licences,CSC - Hunts,5229,64071,ICT Software,309.94,,IMD
23/08/2019,Automated email Subscription for City,Camb City,5222,64071,ICT Software,58.25,,IMD
24/08/2019,Safety Clothing,PPE,4063,62000,"Clothes, Uniform and Laundry",22.07,,One Leisure St Ives
25/08/2019,Amazon,Shoe covers,4063,61713,Equipment,8.29,,One Leisure St Ives
26/08/2019,iStock,iStock,4010,62005,"Advertising, Publicity and Marketing",70.00,,One Leisure Huntingdon
26/08/2019,Hoosuite,Hoosuite,4010,62005,"Advertising, Publicity and Marketing",142.80,,One Leisure Huntingdon
26/08/2019,Items for CSC Set-up at St.Neots,CSC - Hunts,5229,64071,ICT Software,37.91,,IMD
27/08/2019,Trainline,Trainline,5220,60115,Staff Training and Devlopment,210.60,,Human Resources
27/08/2019,Yellow Shield,Yellow Shield,5204,60907,Other Vehicle Costs,792.00,,Operations
27/08/2019,Yellow Shield,Yellow Shield,5204,60907,Other Vehicle Costs,-792.00,,Operations
27/08/2019,Tesco,Tesco,4075,61713,Equipment,6.37,,One Leisure Huntingdon
27/08/2019,Dropbox,Dropbox,4010,62005,"Advertising, Publicity and Marketing",9.99,,One Leisure Huntingdon
27/08/2019,Cloud and JIRA Services,Digital Team,5229,64071,ICT Software,25.31,,IMD
27/08/2019,Tesco,Catering Materials,4071,61900,Catering Supplies,6.37,,One Leisure Huntingdon
27/08/2019,Tesco,Tesco,4075,61713,Equipment,-6.37,,One Leisure Huntingdon
28/08/2019,Peterborough Station,Peterborough Station,5220,60115,Staff Training and Devlopment,15.00,,Human Resources
28/08/2019,Westminster Forum,Forum - 06/02/2020,4143,64300,Conference Expenses,230.00,,Operations
29/08/2019,Peterborough Station,Peterborough Station,5220,60115,Staff Training and Devlopment,15.00,,Human Resources
29/08/2019,Items for CSC Set-up at City,CSC - City,5229,64071,ICT Software,139.96,,IMD
30/08/2019,Peterborough Station,Peterborough Station,5220,60115,Staff Training and Devlopment,15.00,,Human Resources
30/08/2019,BlindParts.co.uk,Weights/chain for blinds,5190,61713,Equipment,55.17,,Operations
30/08/2019,Sit-Stand Trading Ltd,Yo-Yo Desk,4143,61713,Equipment,279.13,,Operations
30/08/2019,Lifesavers Direct,Lifesavers Direct,4033,61713,Equipment,176.00,,One Leisure Huntingdon
30/08/2019,Powerhouse Direct,Powerhouse Direct,4033,61713,Equipment,209.11,,One Leisure Huntingdon
31/08/2019,Facebook,Facebook,4010,62005,"Advertising, Publicity and Marketing",89.14,,One Leisure Huntingdon
31/08/2019,Mailchimp,Mailchimp,4010,62005,"Advertising, Publicity and Marketing",49.83,,One Leisure Huntingdon
02/09/2019,Amazon,Amazon,4033,61713,Equipment,0.99,,One Leisure Huntingdon
03/09/2019,AMAZON MKT PLACE,2 @ FOOD DELIVERY BAGS OCOMP,4057,61713,Equipment,35.98,,One Leisure St Ives
03/09/2019,The Plumbing Centre,Materials,4143,61713,Equipment,38.26,,Operations
04/09/2019,Amazon,Orthopaedic Chair,5225,61703,Equipment,264.00,,IMD
04/09/2019,Amazon,Materials,4022,61713,Equipment,149.97,,One Leisure Huntingdon
04/09/2019,Amazon,Materials,4033,61713,Equipment,149.97,,One Leisure Huntingdon
04/09/2019,*Redacted,*Redacted,4143,61713,Equipment,350.00,,Operations
04/09/2019,Solarwinds,Digital Team,5229,64071,ICT Software,373.45,,IMD
04/09/2019,Trainline,Train tickets,4010,64300,Conference Expenses,45.56,,One Leisure Huntingdon
04/09/2019,Travelodge,Temporary Accommodation, H4708 ,64401,B&B Accomodation,136.98,,Housing
05/09/2019,Chartered Institute of Environmental Health,Training,5271,60115,Staff Training and Devlopment,140.00,,Community Services
05/09/2019,Amazon,Amazon,5220,60115,Staff Training and Devlopment,19.49,,Human Resources
05/09/2019,Amazon,Materials,4043,60201,Maintenance Buildings,20.50,,One Leisure Huntingdon
05/09/2019,CBA Winzip,WinZip Pro for CPCA - 5x licences,5233,64071,ICT Software,171.80,,IMD
05/09/2019,Bitrix,Web-based PM Tool,5229,64071,ICT Software,167.80,,IMD
05/09/2019,Hampton by Hilton,Accomodation,4010,64300,Conference Expenses,92.65,,One Leisure Huntingdon
05/09/2019,Travelodge,Temporary Accommodation, H4671 ,64401,B&B Accomodation,436.93,,Housing
06/09/2019,Marks & Spencer,Hospitality,4145,61903,Hospitality,42.03,,Corporate Office
06/09/2019,MSFT,CA - SCDC Sharepoint,5237,64071,ICT Software,168.60,,IMD
06/09/2019,Marks & Spencer,Hospitality,4145,61903,Hospitality,-42.03,,Corporate Office
09/09/2019,Collab365,Collab Training Materials,5229,60115,Staff Training and Devlopment,91.90,,IMD
09/09/2019,Amazon,Materials,4043,60201,Maintenance Buildings,7.99,,One Leisure Huntingdon
09/09/2019,I stock,Marketing,4010,62005,"Advertising, Publicity and Marketing",42.00,,One Leisure Huntingdon
09/09/2019,Posturite Ltd,Mouse,5225,64070,ICT Hardware,76.74,,IMD
09/09/2019,Google,Google Cloud - Maps Search,5222,64900,Registration Fee,97.28,,IMD
09/09/2019,M&S,Hospitality Interviews,4145,61903,Hospitality,42.03,,Corporate Office
10/09/2019,Trainline,Trainline,5220,60115,Staff Training and Devlopment,140.90,,Human Resources
10/09/2019,Amazon UK,Purchase of specialist elections stationery,4604,62002,Stationery,52.69,,Corporate Office
10/09/2019,Adobe,Marketing,4010,62005,"Advertising, Publicity and Marketing",49.94,,One Leisure Huntingdon
10/09/2019,1 & 1 Internet,Marketing,4010,62005,"Advertising, Publicity and Marketing",14.40,,One Leisure Huntingdon
10/09/2019,Kalnet4u Ltd,0300 number,5222,64077,Landline Rental,17.99,,IMD
11/09/2019,Money Claim Online,Fees for Debt recovery through the Courts,9167,12052,Sales Control 2,60.00,,Benefits
11/09/2019,Bristows Cycles,parts for adapted bikes,4119,61702,"Maintenance - Equipment, Furniture and Materials",15.00,,Country Services
11/09/2019,Marks & Spencer,Hospitality,4145,61903,Hospitality,39.70,,Corporate Office
11/09/2019,Marks & Spencer,Hospitality,4145,61903,Hospitality,-39.70,,Corporate Office
12/09/2019,Money Claim Online,Fees for Debt recovery through the Courts,9167,12052,Sales Control 2,60.00,,Benefits
12/09/2019,Money Claim Online,Fees for Debt recovery through the Courts,9167,12052,Sales Control 2,105.00,,Benefits
12/09/2019,Money Claim Online,Fees for Debt recovery through the Courts,9167,12052,Sales Control 2,60.00,,Benefits
12/09/2019,Peterborogh Station,Peterborogh Station,5220,60115,Staff Training and Devlopment,15.00,,Human Resources
12/09/2019,AMAZON MKT PLACE,VARIOUS POSTER FRAMES BURGESS,4050,61709,Materials,21.99,,One Leisure St Ives
12/09/2019,Travelodge,Temporary Accommodation, H4671 ,64401,B&B Accomodation,85.98,,Housing
12/09/2019,M&S,Hospitality Interviews,4145,61903,Hospitality,39.70,,Corporate Office
13/09/2019,Peterborogh Station,Peterborogh Station,5220,60115,Staff Training and Devlopment,15.00,,Human Resources
13/09/2019,J2 Efax,eFax Service for City,5222,64071,ICT Software,19.20,,IMD
13/09/2019,Nesta Futurefest,Conference,4135,64300,Conference Expenses,55.00,,Corporate Office
13/09/2019,Travelodge,Temporary Accommodation, H4671 ,64401,B&B Accomodation,597.91,,Housing
13/09/2019,Nesta Futurefest,Conference,4135,64300,Conference Expenses,-55.00,,Corporate Office
14/09/2019,Canva,Marketing,4010,62005,"Advertising, Publicity and Marketing",8.31,,One Leisure Huntingdon
16/09/2019,Amazon,Amazon,5220,60115,Staff Training and Devlopment,64.00,,Human Resources
16/09/2019,ofcom,Enquiry,4043,60410,Licences,75.00,,One Leisure Huntingdon
16/09/2019,Bluecharged,Phone extension cable,5204,61713,Equipment,1.89,,Operations
16/09/2019,Protec Direct,Protective clothing/equipment,5282,62000,"Clothes, Uniform and Laundry",119.19,,Planning
16/09/2019,Dell Products,Fix of Digital Dell Laptop,5225,64070,ICT Hardware,153.22,,IMD
16/09/2019,Allies Computing,"Postcode Search - 10,000 credits",5225,64071,ICT Software,468.00,,IMD
16/09/2019,The MJ Hemming Group,Conference,4135,64300,Conference Expenses,140.00,,Corporate Office
16/09/2019,The MJ Hemming Group,Conference,4135,64300,Conference Expenses,-140.00,,Corporate Office
16/09/2019,Nesta,Conference,4145,64300,Conference Expenses,55.00,,Corporate Office
17/09/2019,Sainsburys,Sainsburys,5220,60115,Staff Training and Devlopment,12.00,,Human Resources
17/09/2019,paypal,Materials,4032,60201,Maintenance Buildings,28.50,,One Leisure Huntingdon
17/09/2019,Amazon - worldofbargain888,equipment,5282,61713,Equipment,41.61,,Planning
17/09/2019,Farm market place,equipment,5282,61713,Equipment,310.20,,Planning
17/09/2019,Vistaprint,Flyers/banner,4119,62005,"Advertising, Publicity and Marketing",157.12,,Country Services
17/09/2019,MJ,Subscription,4145,64800,Membersip and Subscription,140.00,,Corporate Office
18/09/2019,Wilko,Wilko,5220,60115,Staff Training and Devlopment,6.50,,Human Resources
18/09/2019,DVLA,Vehicle Excise Duty,Redacted,60905,Vehicle Licence,262.50,,Operations
18/09/2019,DVLA,Vehicle Excise Duty,Redacted,60905,Vehicle Licence,262.50,,Operations
18/09/2019,DVLA,Vehicle Excise Duty,Redacted,60905,Vehicle Licence,617.50,,Operations
18/09/2019,DVLA,Vehicle Excise Duty,Redacted,60905,Vehicle Licence,262.50,,Operations
18/09/2019,DVLA,Vehicle Excise Duty,Redacted,60905,Vehicle Licence,617.50,,Operations
18/09/2019,DVLA,Vehicle Excise Duty,Redacted,60905,Vehicle Licence,617.50,,Operations
18/09/2019,Adobe,Marketing,4010,62005,"Advertising, Publicity and Marketing",41.62,,One Leisure Huntingdon
18/09/2019,MSFT,Software,5229,64071,ICT Software,"2,196.00",,IMD
18/09/2019,MSFT,Software,5229,64071,ICT Software,"-2,196.00",,IMD
18/09/2019,Microsoft,Renewal of exchange online subscription 23/07/2019 - 22/07/2020,5229,64071,ICT Software,"2,196.00",,IMD
19/09/2019,Amazon,Amazon,5220,60115,Staff Training and Devlopment,5.82,,Human Resources
19/09/2019,TICKET SOURCE LTD,6 @ THERMAL TICKET ROLLS BURGESS,4050,61709,Materials,80.09,,One Leisure St Ives
19/09/2019,Screwfix,Padlocks,5370,61713,Equipment,107.94,,Operations
19/09/2019,Screwfix,Padlocks,5370,61713,Equipment,0.06,,Operations
19/09/2019,OLD BRIDGE HOTEL,3 @ ROOMS EAST 17 BURGESS FUNCTION,4050,64079,Entertainments,324.00,,One Leisure St Ives
20/09/2019,Travelodge,Temporary Accommodation, H4671 ,64401,B&B Accomodation,419.93,,Housing
20/09/2019,General Register Office,RIA, H4700 ,64403,Homeless Prevention Payments,38.00,,Housing
22/09/2019,Amazon,Amazon,4075,61713,Equipment,7.99,,One Leisure Huntingdon
22/09/2019,Amazon,Amazon,4075,61713,Equipment,-7.99,,One Leisure Huntingdon
22/09/2019,Amazon,Prime Subscription,4075,60410,Licences,7.99,,One Leisure Huntingdon
23/09/2019,furniture at work,Materials,4043,60201,Maintenance Buildings,102.00,,One Leisure Huntingdon
23/09/2019,Mail Chimp,Automated email Subscription for City,5222,64071,ICT Software,56.61,,IMD
24/09/2019,Trainline,Trainline,5220,60115,Staff Training and Devlopment,140.90,,Human Resources
24/09/2019,B&Q,maintenance materials,4119,61702,"Maintenance - Equipment, Furniture and Materials",27.04,,Country Services
24/09/2019,Screwfix,maintenance materials,4119,61702,"Maintenance - Equipment, Furniture and Materials",54.51,,Country Services
25/09/2019,Amazon,Amazon,5220,60115,Staff Training and Devlopment,20.54,,Human Resources
25/09/2019,Amazon,Amazon,4075,61713,Equipment,6.40,,One Leisure Huntingdon
25/09/2019,Mr BS Shoes & Keys,Key cutting,4145,69150,Other Services,9.00,,Corporate Office
25/09/2019,Mr BS Shoes & Keys,Key cutting,4145,69150,Other Services,-9.00,,Corporate Office
25/09/2019,Amazon,Amazon,4075,61713,Equipment,-6.40,,One Leisure Huntingdon
25/09/2019,Amazon,PPE - Gloves,4075,62000,"Clothes, Uniform and Laundry",6.40,,One Leisure Huntingdon
26/09/2019,Peterborogh Station,Peterborogh Station,5220,60115,Staff Training and Devlopment,15.00,,Human Resources
26/09/2019,I stock,Marketing,4010,62005,"Advertising, Publicity and Marketing",70.00,,One Leisure Huntingdon
26/09/2019,Hootsuite,Marketing,4010,62005,"Advertising, Publicity and Marketing",142.80,,One Leisure Huntingdon
26/09/2019,Amazon various suppliers,materials for event,4119,62900,Events,109.00,,Country Services
26/09/2019,Mr B?s shoes and keys,Other expenses,4145,62004,General Office,9.00,,Corporate Office
27/09/2019,Peterborogh Station,Peterborogh Station,5220,60115,Staff Training and Devlopment,15.00,,Human Resources
27/09/2019,Drop box,Marketing,4010,62005,"Advertising, Publicity and Marketing",9.99,,One Leisure Huntingdon
27/09/2019,CBA Winzip,WinZip Pro for CPCA - 1 additional licence,5233,64071,ICT Software,42.95,,IMD
29/09/2019,Bitrix,Web-based PM Tool,5229,64071,ICT Software,166.96,,IMD
30/09/2019,Facebook,Marketing,4010,62005,"Advertising, Publicity and Marketing",164.91,,One Leisure Huntingdon
30/09/2019,facebook,Marketing,4010,62005,"Advertising, Publicity and Marketing",124.93,,One Leisure Huntingdon
30/09/2019,Mail Chimp,Marketing,4010,62005,"Advertising, Publicity and Marketing",49.27,,One Leisure Huntingdon
01/10/2019,Chartered Foresters,conference booking,5220,60115,Staff Training and Devlopment,40.00,,Planning
01/10/2019,Disruptive HR,Disruptive HR,5220,60115,Staff Training and Devlopment,23.00,,Human Resources
01/10/2019,amazon,Materials,4043,60201,Maintenance Buildings,35.21,,One Leisure Huntingdon
01/10/2019,Amazon,Amazon,4075,61713,Equipment,11.32,,One Leisure Huntingdon
01/10/2019,WM MORRISONS,VARIOUS FOOD ITEMS BURGESS 01 OCT,4049,61900,Catering Supplies,80.14,,One Leisure St Ives
01/10/2019,Digicert,CA Global Protect 27/9/19 to 7/10/20,5237,64071,ICT Software,336.58,,IMD
01/10/2019,Google,Google Cloud - Maps Search,5222,64900,Registration Fee,116.18,,IMD
01/10/2019,OLD BRIDGE HOTEL,FOOD PROVIDED EAST 17,4050,64079,Entertainments,119.10,,One Leisure St Ives
01/10/2019,Amazon,Amazon,4075,61713,Equipment,-11.32,,One Leisure Huntingdon
01/10/2019,Amazon,Suction Pads,4075,61713,Equipment,11.32,,One Leisure Huntingdon
02/10/2019,GTR Rail Ticket,Travel,4145,60012,Employee Allowances,53.10,,Corporate Office
02/10/2019,Travel,GTR Rail Ticket,4145,60012,Employee Allowances,-53.10,,Corporate Office
02/10/2019,GTR Rail,Travel,4145,60012,Employee Allowances,53.10,,Corporate Office
03/10/2019,Amazon various suppliers,materials for event,4119,62900,Events,15.94,,Country Services
03/10/2019,Spec savers,equipment,5219,61713,Equipment,144.43,,One Leisure Huntingdon
03/10/2019,Amazon,equipment,4019,61709,Materials,29.99,,One Leisure Huntingdon
03/10/2019,Amazon,equipment,4138,62002,Stationery,53.98,,Corporate Office
04/10/2019,Timpson,Keys,4129,60201,Maintenance Buildings,24.00,,Operations
04/10/2019,Timpson,Keys,4903,60201,Maintenance Buildings,13.50,,Operations
04/10/2019,Discount Carpet tiles,equipment,4043,60201,Maintenance Buildings,74.34,,One Leisure Huntingdon
04/10/2019,Amazon,Software,5229,64071,ICT Software,24.47,,IMD
04/10/2019,Amazon,SATA Plug-in Drives,5229,64070,ICT Hardware,24.47,,IMD
04/10/2019,Amazon,Software,5229,64071,ICT Software,-24.47,,IMD
07/10/2019,AMAZON MKT PLACE,4 STEP LADDER WITH HANDPAIL,4050,61713,Equipment,41.95,,One Leisure St Ives
07/10/2019,LNER,equipment,4010,64300,Conference Expenses,79.90,,One Leisure Huntingdon
07/10/2019,Any Lamp,equipment,4043,60201,Maintenance Buildings,39.38,,One Leisure Huntingdon
07/10/2019,Microsoft,Software,5229,64071,ICT Software,168.60,,IMD
07/10/2019,Phoenix,6x MS 365 E3 Licences,5237,64071,ICT Software,168.60,,IMD
07/10/2019,Microsoft,Software,5229,64071,ICT Software,-168.60,,IMD
08/10/2019,Wildview Cameras,CCTV Flytipping Cameras,4277,61713,Equipment,493.90,,Community Services
08/10/2019,Wildview Cameras,CCTV Flytipping Cameras,4277,61713,Equipment,493.90,,Community Services
08/10/2019,AMAZON MKT PLACE,IMP CARABINER HEAVY DUTY @ 2,4053,61709,Materials,4.98,,One Leisure St Ives
08/10/2019,AMAZON MKT PLACE,100 SPLIT RINGS LTD,4053,61709,Materials,5.18,,One Leisure St Ives
08/10/2019,AMAZON MKT PLACE,ENGRAVED NO: DISKS 1-100 @ 2,4053,61709,Materials,27.18,,One Leisure St Ives
08/10/2019,WM MORRISONS,VARIOUS FOOD ITEMS BURGESS 01 OCT,4049,61900,Catering Supplies,40.01,,One Leisure St Ives
08/10/2019,Sports Direct,equipment,4030,61713,Equipment,159.99,,One Leisure Huntingdon
08/10/2019,Tescos,Equipment,5220,60115,Staff Training and Devlopment,41.10,,Human Resources
09/10/2019,Shoe repairs\Key Cutting,Key Cutting,4063,60201,Maintenance Buildings,9.90,,One Leisure St Ives
09/10/2019,AMAZON MKT PLACE,SOCKET CAP SCREWS/NUTS ASSORTMENT KIT,4050,60201,Maintenance Buildings,22.98,,One Leisure St Ives
09/10/2019,AMAZON MKT PLACE,2 @ HEAVY DUTY MOUNTING TAPE,4050,61709,Materials,10.99,,One Leisure St Ives
09/10/2019,WM MORRISONS,VARIOUS FOOD ITEMS BURGESS 01 OCT,4049,61900,Catering Supplies,22.40,,One Leisure St Ives
09/10/2019,Amazon,equipment,4044,61713,Equipment,12.95,,One Leisure Huntingdon
09/10/2019,amazon,equipment,4032,60201,Maintenance Buildings,7.99,,One Leisure Huntingdon
10/10/2019,GTECH - PAYPAL,AIRRAM MK 2 IMP OLSI,4053,61713,Equipment,199.99,,One Leisure St Ives
10/10/2019,adobe,equipment,4010,62005,"Advertising, Publicity and Marketing",49.94,,One Leisure Huntingdon
10/10/2019,1 & 1 Internet,Marketing,4010,62005,"Advertising, Publicity and Marketing",14.40,,One Leisure Huntingdon
10/10/2019,Tamar Telecom,3C Building Control ,5222,64077,Landline Rental,17.99,,IMD
11/10/2019,Amazon,equipment,4032,60201,Maintenance Buildings,5.99,,One Leisure Huntingdon
11/10/2019,Be My Bear,equipment,4019,61709,Materials,89.22,,One Leisure Huntingdon
11/10/2019,Amazon,Equipment,4075,61713,Equipment,26.61,,One Leisure Huntingdon
11/10/2019,Kalnet 4U,0300 number,5222,64077,Landline Rental,17.99,,IMD
11/10/2019,1&1,3C SS Domain Names,5229,64900,Registration Fee,174.24,,IMD
11/10/2019,Kalnet 4U,0300 number,5222,64077,Landline Rental,-17.99,,IMD
13/10/2019,J2 Efax Service,eFax Service for City,5222,64071,ICT Software,19.20,,IMD
13/10/2019,1 & 1 Internet,Software,5229,64071,ICT Software,174.24,,IMD
13/10/2019,J2 Efax Service,eFax Service for City,5222,64071,ICT Software,-19.20,,IMD
13/10/2019,1 & 1 Internet,Software,5229,64071,ICT Software,-174.24,,IMD
14/10/2019,Travelodge,Temporary Accommodation,H4748,64401,B&B Accomodation,588.91,,Housing
14/10/2019,Canva,equipment,4010,62005,"Advertising, Publicity and Marketing",8.18,,One Leisure Huntingdon
14/10/2019,Arrow Valves,Equipment,4075,61713,Equipment,158.40,,One Leisure Huntingdon
15/10/2019,M&S,Hospitality,4145,61903,Hospitality,6.00,,Corporate Office
15/10/2019,Shoe repairs\Key Cutting,Key Cutting,4063,60201,Maintenance Buildings,14.85,,One Leisure St Ives
15/10/2019,Outdoor Clothing,Trousers\uniform,4063,62000,"Clothes, Uniform and Laundry",40.00,,One Leisure St Ives
15/10/2019,WM MORRISONS,VARIOUS FOOD ITEMS BURGESS 01 OCT,4049,61900,Catering Supplies,72.27,,One Leisure St Ives
15/10/2019,Amazon - Gvoo,equipment,5282,61713,Equipment,9.98,,Planning
15/10/2019,Amazon,equipment,4032,60201,Maintenance Buildings,128.35,,One Leisure Huntingdon
15/10/2019,RICS.Com,Equipment,5220,60115,Staff Training and Devlopment,390.00,,Human Resources
15/10/2019,J2 eFax,eFax Service for City,5222,64071,ICT Software,19.20,,IMD
16/10/2019,Paypal: MurphyBrian,DVLA Theory Test Cat B Book,5204,61713,Equipment,11.50,,Operations
16/10/2019,Gen Register Office,RIA,H4718,64403,Homeless Prevention Payments,45.25,,Housing
16/10/2019,DBS,Equipment,4075,61713,Equipment,49.95,,One Leisure Huntingdon
16/10/2019,Meetup Org,Software,5229,64071,ICT Software,58.52,,IMD
16/10/2019,Amazon,Equipment,5220,60115,Staff Training and Devlopment,36.11,,Human Resources
16/10/2019,Guardian News & Media,Equipment,5220,60115,Staff Training and Devlopment,498.00,,Human Resources
16/10/2019,Guardian News & Media,Equipment,5220,60115,Staff Training and Devlopment,750.00,,Human Resources
16/10/2019,Guardian News & Media,Equipment,5220,60115,Staff Training and Devlopment,750.00,,Human Resources
16/10/2019,MeetUp.com,Digital Meeting Software,5229,64071,ICT Software,58.52,,IMD
16/10/2019,Meetup Org,Software,5229,64071,ICT Software,-58.52,,IMD
17/10/2019,Paypal: Tacklestore,Lifting Clutch to crane concrete blocks,5204,61713,Equipment,30.27,,Operations
17/10/2019,Money Claim online,Fee for debt recovery through the Courts,9167,12052,Sales Control 2,185.00,,Benefits
17/10/2019,Meetup Org,Software,5229,64071,ICT Software,-57.00,,IMD
17/10/2019,MeetUp.com,Digital Meeting Software,5229,64071,ICT Software,-57.00,,IMD
17/10/2019,Meetup Org,Software,5229,64071,ICT Software,57.00,,IMD
18/10/2019,Hilton,Parking,4145,60012,Employee Allowances,13.50,,Corporate Office
18/10/2019,Amazon,Radar Key,4063,60201,Maintenance Buildings,3.50,,One Leisure St Ives
18/10/2019,Baker Ross,equipment,4019,61709,Materials,32.74,,One Leisure Huntingdon
18/10/2019,Office Furniture,equipment,4043,60201,Maintenance Buildings,294.00,,One Leisure Huntingdon
18/10/2019,Adobe,Marketing,4010,62005,"Advertising, Publicity and Marketing",41.62,,One Leisure Huntingdon
18/10/2019,ebay,equipment,4032,60201,Maintenance Buildings,1.98,,One Leisure Huntingdon
18/10/2019,Amazon,Equipment,5220,60115,Staff Training and Devlopment,-0.03,,Human Resources
18/10/2019,Chapel LN Ltd,equipment,4138,62002,Stationery,160.00,,Corporate Office
21/10/2019,Sainsbury's,Hospitality Induction,4145,61903,Hospitality,7.85,,Corporate Office
21/10/2019,Probate Service,Probate enquiry for HB appeal,9167,62004,General Office,1.50,,Benefits
21/10/2019,Amazon,Equipment,4075,61713,Equipment,53.22,,One Leisure Huntingdon
21/10/2019,Amazon,Equipment,5220,60115,Staff Training and Devlopment,80.28,,Human Resources
22/10/2019,HOME BARGAINS,HALLOWEEN BALLOONS WEBS ETC MONSTRA,4050,61709,Materials,17.94,,One Leisure St Ives
22/10/2019,Travelodge,Temporary Accommodation,H4748,64401,B&B Accomodation,307.95,,Housing
22/10/2019,ebay,equipment,4032,60201,Maintenance Buildings,3.98,,One Leisure Huntingdon
22/10/2019,Amazon,equipment,4043,60201,Maintenance Buildings,109.98,,One Leisure Huntingdon
22/10/2019,Amazon,Equipment,4075,61713,Equipment,29.96,,One Leisure Huntingdon
22/10/2019,Amazon,Prime Subscription,4075,60410,Licences,7.99,,One Leisure Huntingdon
23/10/2019,BAPCR,Revalidation Exam Feee,4101,60115,Staff Training and Devlopment,75.00,,Active Leisure
23/10/2019,Tesco,Fuel,4074,60902,Fuel,7.31,,One Leisure Huntingdon
23/10/2019,Mailchimp,Automated email Subscription for City,5222,64071,ICT Software,62.66,,IMD
23/10/2019,MailChimp,Automated email Subscription for City,5222,64071,ICT Software,62.66,,IMD
23/10/2019,Mailchimp,Automated email Subscription for City,5222,64071,ICT Software,-62.66,,IMD
24/10/2019,Amazon   ,saving money on postage trial,4119,64100,Postage and Couriers,7.99,,Country Services
24/10/2019,CIBSE,Membership,5276,64800,Membersip and Subscription,136.00,,Operations
24/10/2019,Police Supplies,Magnum Strike Force Boots,4317,62000,"Clothes, Uniform and Laundry",96.94,,Operations
24/10/2019,BIFM,IWFM Direct Re-registration,5276,60115,Staff Training and Devlopment,160.00,,Operations
24/10/2019,Amazon,4 x Mini Display Port to HDMI Adapter,5190,61713,Equipment,29.16,,Operations
25/10/2019,The Cogworks Ltd,Software,5229,64071,ICT Software,552.60,,IMD
25/10/2019,The Cogworks Ltd,Software,5229,64071,ICT Software,307.20,,IMD
25/10/2019,Umbracco,Umbraco Conference - 3 tickets,5225,64300,Conference Expenses,552.60,,IMD
25/10/2019,Umbracco,Umbraco Conference - 2 tickets,5225,64300,Conference Expenses,307.20,,IMD
25/10/2019,The Cogworks Ltd,Software,5229,64071,ICT Software,-552.60,,IMD
25/10/2019,The Cogworks Ltd,Software,5229,64071,ICT Software,-307.20,,IMD
26/10/2019,Amazon,equipment,4032,60201,Maintenance Buildings,-7.99,,One Leisure Huntingdon
26/10/2019,i-stock,Marketing,4010,62005,"Advertising, Publicity and Marketing",84.00,,One Leisure Huntingdon
26/10/2019,HootSuite,Marketing,4010,62005,"Advertising, Publicity and Marketing",142.80,,One Leisure Huntingdon
27/10/2019,Amazon,equipment,4043,60201,Maintenance Buildings,35.98,,One Leisure Huntingdon
27/10/2019,Dropbox,Marketing,4010,62005,"Advertising, Publicity and Marketing",9.99,,One Leisure Huntingdon
28/10/2019,AMAZON MKT PLACE,2 X 20 HANGERS WOODEN BHALL,4050,61709,Materials,37.79,,One Leisure St Ives
28/10/2019,WM MORRISONS,VARIOUS FOOD ITEMS BURGESS 01 OCT,4049,61900,Catering Supplies,57.62,,One Leisure St Ives
28/10/2019,Allpay: Stonewater Limited,RIA,H4751,64403,Homeless Prevention Payments,217.34,,Housing
28/10/2019,The Broad Leys,Software,5229,64071,ICT Software,180.00,,IMD
28/10/2019,The Broad Leys,Hotel 5/12/19,5229,60115,Staff Training and Devlopment,180.00,,IMD
28/10/2019,The Broad Leys,Software,5229,64071,ICT Software,-180.00,,IMD
29/10/2019,Sainsbury's,Refreshments,4145,61903,Hospitality,11.25,,Corporate Office
29/10/2019,Work and Wear Direct Ltd,Magnum Stealth Force 8.0,4317,62000,"Clothes, Uniform and Laundry",106.99,,Operations
29/10/2019,TahDah - Cimspa,equipment,4056,61709,Materials,180.00,,One Leisure Huntingdon
29/10/2019,Bitrix,Web-based PM Tool,5229,64071,ICT Software,159.98,,IMD
29/10/2019,Work & Wear Direct,Refund for safety boots,4343,62000,"Clothes, Uniform and Laundry",-106.99,,Operations
29/10/2019,Bitrix,Web-based PM Tool,5229,64071,ICT Software,159.98,,IMD
29/10/2019,Bitrix,Web-based PM Tool,5229,64071,ICT Software,-159.98,,IMD
30/10/2019,Vistaprint,Flyers,4119,62005,"Advertising, Publicity and Marketing",23.59,,Country Services
30/10/2019,AMAZON MKT PLACE,TWYFORD AIR BUTTON DUAL FLUSH BURG,4050,60201,Maintenance Buildings,52.07,,One Leisure St Ives
30/10/2019,WM MORRISONS,VARIOUS FOOD ITEMS BURGESS 01 OCT,4049,61900,Catering Supplies,25.26,,One Leisure St Ives
31/10/2019,One Stop Motorist Centre,Insurance claim - repair,4055,63009,Insurance Excess,173.46,,Operations
31/10/2019,Amazon,equipment,4019,61709,Materials,130.81,,One Leisure Huntingdon
31/10/2019,DVLA,Vehicle Licence,5204,60907,Other Vehicle Costs,262.50,,Operations
31/10/2019,DVLA,Vehicle Licence,5204,60907,Other Vehicle Costs,202.50,,Operations
31/10/2019,DVLA,Vehicle Licence,5204,60907,Other Vehicle Costs,262.50,,Operations
31/10/2019,DVLA,Vehicle Licence,5204,60907,Other Vehicle Costs,617.50,,Operations
31/10/2019,DVLA,Vehicle Licence,5204,60907,Other Vehicle Costs,262.50,,Operations
31/10/2019,DVLA,Vehicle Licence,5204,60907,Other Vehicle Costs,262.50,,Operations
31/10/2019,DVLA,Vehicle Licence,5204,60907,Other Vehicle Costs,722.50,,Operations
31/10/2019,DVLA,Vehicle Licence,5204,60907,Other Vehicle Costs,262.50,,Operations
31/10/2019,DVLA,Vehicle Licence,5204,60907,Other Vehicle Costs,262.50,,Operations
31/10/2019,DVLA,Vehicle Licence,5204,60907,Other Vehicle Costs,722.50,,Operations
31/10/2019,DVLA,Vehicle Licence,5204,60907,Other Vehicle Costs,722.50,,Operations
31/10/2019,DVLA,Vehicle Licence,5204,60907,Other Vehicle Costs,722.50,,Operations
31/10/2019,DVLA,Vehicle Licence,5204,60907,Other Vehicle Costs,262.50,,Operations
31/10/2019,DVLA,Vehicle Licence,5204,60907,Other Vehicle Costs,617.50,,Operations
31/10/2019,Mailchimp,Marketing,4010,62005,"Advertising, Publicity and Marketing",56.47,,One Leisure St Ives
01/11/2019,Facebook,Facebook advertising,4010,62005,"Advertising, Publicity and Marketing",51.41,,One Leisure St Ives
01/11/2019,Google,Google Cloud - Maps Search,5222,64900,Registration Fee,148.12,,IMD
01/11/2019,Digicert,CA Global Protect,5237,64071,ICT Software,548.03,,IMD
01/11/2019,Google,Google Cloud MapSearch,5222,64071,ICT Software,148.12,,IMD
01/11/2019,DigiCert,*.cambridge.gov.uk,5227,64071,ICT Software,548.03,,IMD
01/11/2019,Google,Google Cloud - Maps Search,5222,64900,Registration Fee,-148.12,,IMD
01/11/2019,Digicert,CA Global Protect,5237,64071,ICT Software,-548.03,,IMD
02/11/2019,power house direct,Gym Equipment,4030,61713,Equipment,254.75,,One Leisure Huntingdon
03/11/2019,WM MORRISONS,BURGESS GROCERIES VARIOUS,4049,61900,Catering Supplies,23.24,,One Leisure St Ives
04/11/2019,AMAZON MKT PLACE,100 NMBR NUMBER DISCS FOR LOCKERS,4053,61709,Materials,19.99,,One Leisure St Ives
04/11/2019,TESCO STROE,BURGESS GROCERIES VARIOUS,4049,61900,Catering Supplies,17.57,,One Leisure St Ives
04/11/2019,Vistaprint,Flyers/banner,4119,62005,"Advertising, Publicity and Marketing",21.28,,Country Services
04/11/2019,Borney,Sign,4145,62004,General Office,129.00,,Corporate Office
04/11/2019,granmore,ceiling tiles,4032,60201,Maintenance Buildings,211.20,,One Leisure Huntingdon
04/11/2019,granmore,ceilng tiles,4032,60201,Maintenance Buildings,300.00,,One Leisure Huntingdon
04/11/2019,Microsoft,CA - SCDC Sharepoint,5237,64071,ICT Software,168.60,,IMD
04/11/2019,The Myers Briggs Company,Training resources,5220,60115,Staff Training and Devlopment,264.00,,Human Resources
04/11/2019,Yellow Shield,Bins,100040,61200,Refuse Containers,264.00,,Operations
04/11/2019,Phoenix,6x MS 365 E3 Licences,5237,64071,ICT Software,168.60,,IMD
04/11/2019,Microsoft,CA - SCDC Sharepoint,5237,64071,ICT Software,-168.60,,IMD
05/11/2019,Screwfix,Overhead door closer,5288,60201,Maintenance Buildings,87.18,,Operations
06/11/2019,WM MORRISONS,BURGESS GROCERIES VARIOUS,4049,61900,Catering Supplies,54.47,,One Leisure St Ives
06/11/2019,Vistaprint,Flyers/banner,4119,62005,"Advertising, Publicity and Marketing",72.23,,Country Services
07/11/2019,Amazon prime refund,,4119,64100,Postage and Couriers,-7.99,,Country Services
07/11/2019,Waterstones,Book,4145,62003,"Books, Publications",29.98,,Corporate Office
07/11/2019,Larrys Heel bar,Key Cutting,4063,60201,Maintenance Buildings,29.70,,One Leisure St Ives
07/11/2019,ToolStation,Safety boots,4343,62000,"Clothes, Uniform and Laundry",99.98,,Operations
07/11/2019,Amazon,Equipment for tablets - SC,4327,61713,Equipment,69.93,,Operations
07/11/2019,Police Supplies,Refund for safety boots,4317,62000,"Clothes, Uniform and Laundry",-96.94,,Operations
08/11/2019,WWWCONCEPT2.CO.UK,5 @ FOOTSTRAP IMP OLSI,4053,61713,Equipment,19.50,,One Leisure St Ives
08/11/2019,Landmark Trading,PPE,4113,62000,"Clothes, Uniform and Laundry",302.20,,Country Services
10/11/2019,Adobe Creative Cloud,Publishing software,4010,62005,"Advertising, Publicity and Marketing",49.94,,One Leisure St Ives
10/11/2019,1&1 Internet,Website hosting,4010,62005,"Advertising, Publicity and Marketing",14.40,,One Leisure St Ives
11/11/2019,RTPI,Nathaniel Lichfield Lecture,5220,60115,Staff Training and Devlopment,18.00,,Planning
11/11/2019,M&S,Hospitality - interviews,4145,61903,Hospitality,12.50,,Corporate Office
11/11/2019,B & Q,paint,4032,60201,Maintenance Buildings,18.00,,One Leisure Huntingdon
11/11/2019,Yellow Shield,Bins,100040,61200,Refuse Containers,200.40,,Operations
12/11/2019,Travelodge,Temporary Accommodation, H4769 ,64401,B&B Accomodation,95.99,,Housing
13/11/2019,Amazon various suppliers,materials for event,4119,62900,Events,85.00,,Country Services
13/11/2019,HDC,TEN licence,4119,60410,Licences,21.00,,Country Services
13/11/2019,Amazon various suppliers,materials for event,4119,62900,Events,53.89,,Country Services
13/11/2019,J2 Efax,eFax Service for City,5222,64071,ICT Software,19.20,,IMD
13/11/2019,1 & 1 Internet Ltd,Domain,5225,64071,ICT Software,54.36,,IMD
13/11/2019,Canterbury City Council,Training resources,5220,60115,Staff Training and Devlopment,144.00,,Human Resources
13/11/2019,Canterbury City Council,Training resources,5220,60115,Staff Training and Devlopment,144.00,,Human Resources
13/11/2019,J2 eFax,eFax Service for City,5222,64071,ICT Software,19.20,,IMD
13/11/2019,1&1,Huntingdonshire domains,5229,64900,Registration Fee,54.36,,IMD
13/11/2019,J2 Efax,eFax Service for City,5222,64071,ICT Software,-19.20,,IMD
13/11/2019,1 & 1 Internet Ltd,Domain,5225,64071,ICT Software,-54.36,,IMD
14/11/2019,Canva,Editing software,4010,62005,"Advertising, Publicity and Marketing",7.99,,One Leisure St Ives
14/11/2019,Amazon,Housing Equipment Order,5278,61713,Equipment,142.98,,Housing
14/11/2019,WWWCONCEPT2.CO.UK,5 @ FOOTSTRAP IMP OLSI,4053,61713,Equipment,19.50,,One Leisure St Ives
14/11/2019,Amazon,Anti Glare screen protector,4327,61713,Equipment,9.99,,Operations
14/11/2019,3Q Sports,Staff Uniform,4106,62000,"Clothes, Uniform and Laundry",140.14,,Active Leisure
15/11/2019,Travelodge,Temporary Accommodation, H4764 ,64401,B&B Accomodation,74.97,,Housing
15/11/2019,WM MORRISONS,BURGESS GROCERIES VARIOUS,4049,61900,Catering Supplies,27.50,,One Leisure St Ives
15/11/2019,ebay,maintenace items,4032,60201,Maintenance Buildings,14.99,,One Leisure Huntingdon
15/11/2019,Terrys Heel bar,Key Cutting,4063,60201,Maintenance Buildings,33.00,,One Leisure St Ives
16/11/2019,Amazon,2 x Pop Up Tents - Nerf Wars,4073,61713,Equipment,99.98,,One Leisure Huntingdon
18/11/2019,Adobe Creative Cloud,Publishing software,4010,62005,"Advertising, Publicity and Marketing",41.62,,One Leisure St Ives
18/11/2019,Travelodge,Temporary Accommodation, H4764 ,64401,B&B Accomodation,398.93,,Housing
18/11/2019,Travelodge,Temporary Accommodation, H4766 ,64401,B&B Accomodation,63.99,,Housing
18/11/2019,Amazon various suppliers,materials for event,4119,62900,Events,139.96,,Country Services
18/11/2019,Amazon various suppliers,materials for event,4119,62900,Events,50.00,,Country Services
18/11/2019,Vistaprint,Flyers/banner,4119,62005,"Advertising, Publicity and Marketing",41.27,,Country Services
18/11/2019,Bigdug,Racking,4063,61713,Equipment,336.54,,One Leisure St Ives
18/11/2019,TSGN,Rail Ticket,4164,60012,Employee Allowances,106.20,,Corporate Office
18/11/2019,www.local.gov.uk,Licences,4164,60012,Employee Allowances,477.60,,Corporate Office
18/11/2019,Built Enviroment,Training resources,5220,60115,Staff Training and Devlopment,154.80,,Human Resources
19/11/2019,MAUDESPORT LTD,1 @ TABLE TENNIS TABLE - GREEN,4054,61713,Equipment,294.93,,One Leisure St Ives
19/11/2019,WM MORRISONS,BURGESS GROCERIES VARIOUS,4049,61900,Catering Supplies,23.58,,One Leisure St Ives
19/11/2019,MAUDESPORT LTD,CARRIAGE CHARGE FOR T TENNIS TABLE,4054,61713,Equipment,55.31,,One Leisure St Ives
19/11/2019,TV LICENCSING OLSI,VALID UNTIL 30 NOV 2020,4063,60410,Licences,154.50,,One Leisure St Ives
19/11/2019,TV LICENCSING OCOMP,VALID UNTIL 30 NOV 2020,4055,60410,Licences,154.50,,One Leisure St Ives
19/11/2019,M&S,Hospitality - Cabinet Away Day,4145,61903,Hospitality,43.20,,Corporate Office
19/11/2019,Applegate Van Hire,Van Hire (to collect steel),4072,60909,Vehicle Hire,75.00,,One Leisure Huntingdon
19/11/2019,ebay,maintenace items,4032,60201,Maintenance Buildings,33.98,,One Leisure Huntingdon
20/11/2019,M&S,Hospitality - interviews,4145,61903,Hospitality,7.80,,Corporate Office
20/11/2019,BM Steel,Galvanised Steel Sheet,4072,60201,Maintenance Buildings,117.90,,One Leisure Huntingdon
20/11/2019,Tesco,Tractor Fuel,4074,60902,Fuel,10.00,,One Leisure Huntingdon
20/11/2019,powerhouse direct,Gym Equipment,4030,61713,Equipment,120.92,,One Leisure Huntingdon
20/11/2019,Total Jobs,Training resources,5220,60115,Staff Training and Devlopment,498.00,,Human Resources
21/11/2019,Click4Balloons,Helium gas canister for event,4119,62900,Events,89.00,,Country Services
21/11/2019,Tesco,Sand,4075,60201,Maintenance Buildings,24.00,,One Leisure Huntingdon
21/11/2019,Staples,office chair,4030,61713,Equipment,80.38,,One Leisure Huntingdon
21/11/2019,Pens Unlimited,100 pens 3C ICT Logo,5225,62002,Stationery,83.64,,IMD
22/11/2019,Travelodge,Temporary Accommodation, H4764 ,64401,B&B Accomodation,365.93,,Housing
22/11/2019,Amazon,Prime Subscription,4075,60410,Licences,7.99,,One Leisure Huntingdon
22/11/2019,amazon,maintenace items,4032,60201,Maintenance Buildings,48.38,,One Leisure Huntingdon
22/11/2019,tesco,marketing,4010,62005,"Advertising, Publicity and Marketing",6.26,,One Leisure Huntingdon
22/11/2019,Amazon,Social Media - Selfie Board,4129,60200,Facilities Management,25.98,,Operations
23/11/2019,Mailchimp,Automated email City,5222,64071,ICT Software,62.87,,IMD
23/11/2019,MailChimp,Automated email Subscription for City,5222,64071,ICT Software,62.87,,IMD
23/11/2019,Mailchimp,Automated email City,5222,64071,ICT Software,-62.87,,IMD
25/11/2019,Tesco,Elections,4502,69150,Other Services,12.00,,Corporate Office
26/11/2019,SPAR WARBOYS,MILK BURGESS,4049,61900,Catering Supplies,6.89,,One Leisure St Ives
26/11/2019,Kalnet 4U,0300 number,5222,64077,Landline Rental,17.99,,IMD
26/11/2019,Tamar Telecom,3C Building Control ,5222,64077,Landline Rental,17.99,,IMD
26/11/2019,Kalnet 4U,0300 number,5222,64077,Landline Rental,-17.99,,IMD
27/11/2019,Bigdug,Racking,4063,61713,Equipment,136.80,,One Leisure St Ives
27/11/2019,Amazon,Walkie Talkies,4317,61713,Equipment,223.98,,Operations
27/11/2019,Amazon,Health Walk Leaders neck warmers,4104,62005,"Advertising, Publicity and Marketing",105.00,,Active Leisure
27/11/2019,Swimming Org,Training resources,5220,60115,Staff Training and Devlopment,68.00,,Human Resources
28/11/2019,iStock,Image licensing,4010,62005,"Advertising, Publicity and Marketing",84.00,,One Leisure St Ives
28/11/2019,Hootsuite,Social media monitoring,4010,62005,"Advertising, Publicity and Marketing",142.80,,One Leisure St Ives
28/11/2019,Facebook,Facebook advertising,4010,62005,"Advertising, Publicity and Marketing",1.50,,One Leisure St Ives
28/11/2019,Facebook,Facebook advertising,4010,62005,"Advertising, Publicity and Marketing",1.50,,One Leisure St Ives
28/11/2019,Facebook,Facebook advertising,4010,62005,"Advertising, Publicity and Marketing",1.50,,One Leisure St Ives
28/11/2019,Facebook,Facebook advertising,4010,62005,"Advertising, Publicity and Marketing",2.00,,One Leisure St Ives
28/11/2019,Facebook,Facebook advertising,4010,62005,"Advertising, Publicity and Marketing",3.00,,One Leisure St Ives
28/11/2019,Facebook,Facebook advertising,4010,62005,"Advertising, Publicity and Marketing",3.00,,One Leisure St Ives
28/11/2019,Facebook,Facebook advertising,4010,62005,"Advertising, Publicity and Marketing",5.00,,One Leisure St Ives
28/11/2019,Facebook,Facebook advertising,4010,62005,"Advertising, Publicity and Marketing",7.00,,One Leisure St Ives
28/11/2019,Canterbury City Council,Institute of Econonic Development Training,5096,60115,Staff Training and Devlopment,144.00,,Planning
29/11/2019,Facebook,Facebook advertising,4010,62005,"Advertising, Publicity and Marketing",12.00,,One Leisure St Ives
29/11/2019,Dropbox,File hosting,4010,62005,"Advertising, Publicity and Marketing",9.99,,One Leisure St Ives
29/11/2019,Solace,Conference,4145,64300,Conference Expenses,510.00,,Corporate Office
29/11/2019,Solace,Conference,4145,64300,Conference Expenses,"1,020.00",,Corporate Office
29/11/2019,Screwfix,Elections,4502,69150,Other Services,119.88,,Corporate Office
29/11/2019,ebay,maintenace items,4032,60201,Maintenance Buildings,9.70,,One Leisure Huntingdon
29/11/2019,ebay,maintenance ,4032,60201,Maintenance Buildings,13.99,,One Leisure Huntingdon
29/11/2019,Brtrix,Web-based PM Tool,5229,64071,ICT Software,159.10,,IMD
29/11/2019,Bitrix,Web-based PM Tool,5229,64071,ICT Software,159.10,,IMD
29/11/2019,Brtrix,Web-based PM Tool,5229,64071,ICT Software,-159.10,,IMD
30/11/2019,Facebook,Facebook advertising,4010,62005,"Advertising, Publicity and Marketing",17.00,,One Leisure St Ives
30/11/2019,Facebook,Facebook advertising,4010,62005,"Advertising, Publicity and Marketing",25.00,,One Leisure St Ives
30/11/2019,Mailchimp,Email marketing,4010,62005,"Advertising, Publicity and Marketing",56.33,,One Leisure St Ives
30/11/2019,Handle King,Cubicle Locks,4055,60201,Maintenance Buildings,169.50,,One Leisure St Ives
01/12/2019,Facebook,Facebook advertising,4010,62005,"Advertising, Publicity and Marketing",25.00,,One Leisure St Ives
01/12/2019,AMAZON MKT PLACE,5FT HEAVY DUTY CLOTHES RAIL @ 4 BURG,4050,61713,Equipment,224.47,,One Leisure St Ives
01/12/2019,AMAZON MKT PLACE,THERMO SELF-ADHESIVE LABLES BURG,4050,61709,Materials,9.91,,One Leisure St Ives
01/12/2019,Google,Google Cloud - Maps Search,5222,64900,Registration Fee,160.92,,IMD
01/12/2019,Google,Google Cloud MapSearch,5222,64071,ICT Software,160.92,,IMD
01/12/2019,Google,Google Cloud - Maps Search,5222,64900,Registration Fee,-160.92,,IMD
02/12/2019,Amazon,Equipment,5225,64070,ICT Hardware,51.00,,IMD
02/12/2019,Amazon,Housing Equipment Order,5278,61713,Equipment,44.41,,Housing
02/12/2019,Amazon,3x Laptop Vertical Stands,5237,64070,ICT Hardware,51.00,,IMD
02/12/2019,Amazon,Equipment,5225,64070,ICT Hardware,-51.00,,IMD
03/12/2019,Facebook,Facebook advertising,4010,62005,"Advertising, Publicity and Marketing",40.00,,One Leisure St Ives
03/12/2019,Travelodge CREDIT,Temporary Accommodation, H4764 ,64401,B&B Accomodation,-130.97,,Housing
03/12/2019,AMAZON MKT PLACE,CLAW BAR KEY RING BTL OPENERS 20 @ 3,4050,61709,Materials,34.96,,One Leisure St Ives
03/12/2019,AMAZON MKT PLACE,CITRUS FOAM HAND & BODY WASH 5LTR @ 4,4050,61300,Cleaning Materials,79.80,,One Leisure St Ives
03/12/2019,Amazon various suppliers,materials for event,4119,62900,Events,15.98,,Country Services
03/12/2019,Tesco,Catering Materials,4071,61900,Catering Supplies,15.32,,One Leisure Huntingdon
03/12/2019,Marks & Spencer,Hospitality - conference,4145,61903,Hospitality,37.73,,Corporate Office
03/12/2019,B & Q,Equipment,4327,61713,Equipment,21.00,,Operations
03/12/2019,Gutter Supplies,Equipment,4327,61713,Equipment,17.74,,Operations
03/12/2019,John Lewis,Equipment,5225,64070,ICT Hardware,21.00,,IMD
03/12/2019,ESE Direct,Equipment,5370,61713,Equipment,429.48,,Operations
03/12/2019,John Lewis,Google Home Mini Speaker,5229,64070,ICT Hardware,21.00,,IMD
03/12/2019,John Lewis,Equipment,5225,64070,ICT Hardware,-21.00,,IMD
04/12/2019,AMAZON MKT PLACE,TWYFORD DUAL FLUSH PLATE BURG TOILET,4050,61713,Equipment,52.07,,One Leisure St Ives
04/12/2019,AMAZON MKT PLACE,PROCHEM LIQUID DEFOAMER 1 @ 5LTR,4050,61300,Cleaning Materials,23.99,,One Leisure St Ives
04/12/2019,AMAZON MKT PLACE,2 @ 5LTR EXTRACTION PLUS CLEANER,4050,61300,Cleaning Materials,38.13,,One Leisure St Ives
04/12/2019,AMAZON MKT PLACE,1 @ 5LTR EXTRACTION CONCENTRATE,4050,61300,Cleaning Materials,19.07,,One Leisure St Ives
04/12/2019,AMAZON MKT PLACE,3 @ 5LTR PROCHEM STAIN PRO,4050,61300,Cleaning Materials,59.88,,One Leisure St Ives
04/12/2019,AMAZON.CO.UK,IMPRESSIONS VELCRO STICK ON TAPE,4053,61709,Materials,6.38,,One Leisure St Ives
04/12/2019,Amazon,Equipment,4075,61713,Equipment,9.99,,One Leisure Huntingdon
04/12/2019,Amazon,Equipment,4033,61713,Equipment,10.58,,One Leisure Huntingdon
05/12/2019,Facebook,Facebook advertising,4010,62005,"Advertising, Publicity and Marketing",60.00,,One Leisure St Ives
05/12/2019,AMAZON MKT PLACE,PROCHEM ODOUR FRESH 2 @ 5LTR,4050,61300,Cleaning Materials,47.80,,One Leisure St Ives
05/12/2019,Microsoft,CA - SCDC Sharepoint,5237,64071,ICT Software,168.60,,IMD
05/12/2019,Microsoft,CA - SCDC Sharepoint,5237,64071,ICT Software,-168.60,,IMD
06/12/2019,Helloprint,Marketing,5366,62005,"Advertising, Publicity and Marketing",47.48,,Operations
06/12/2019,DVLA,Vehicle Tax,5204,60907,Other Vehicle Costs,617.50,,Operations
06/12/2019,DVLA,Vehicle Tax,5204,60907,Other Vehicle Costs,262.50,,Operations
06/12/2019,DVLA,Vehicle Tax,5204,60907,Other Vehicle Costs,142.50,,Operations
06/12/2019,DVLA,Vehicle Tax,5204,60907,Other Vehicle Costs,262.50,,Operations
06/12/2019,DVLA,Vehicle Tax,5204,60907,Other Vehicle Costs,262.50,,Operations
06/12/2019,Phoenix,6x MS 365 E3 Licences,5237,64071,ICT Software,168.60,,IMD
07/12/2019,Wirefence,Fencing,4063,61713,Equipment,111.99,,One Leisure St Ives
08/12/2019,Amazon,Equipment,4033,61713,Equipment,14.98,,One Leisure Huntingdon
09/12/2019,Facebook,Facebook advertising,4010,62005,"Advertising, Publicity and Marketing",90.00,,One Leisure St Ives
09/12/2019,Amazon,Fence clips and tool,4063,61713,Equipment,49.99,,One Leisure St Ives
09/12/2019,Sainsbury's,General Election,4502,69150,Other Services,19.80,,Corporate Office
09/12/2019,Sainsbury's,Hospitality - refreshments,4145,61903,Hospitality,10.50,,Corporate Office
09/12/2019,Amazon,Equipment,4327,61713,Equipment,7.99,,Operations
10/12/2019,Adobe Creative Cloud,Publishing software,4010,62005,"Advertising, Publicity and Marketing",49.94,,One Leisure St Ives
10/12/2019,1&1 Internet,Website hosting,4010,62005,"Advertising, Publicity and Marketing",14.40,,One Leisure St Ives
10/12/2019,AMAZON.CO.UK,PK 300 MILK CHOC MINT AFTER DINNER BURG,4021,61713,Equipment,27.50,,One Leisure St Ives
10/12/2019,BACPR,Cardiac Rehab renewal,4101,60115,Staff Training and Devlopment,75.00,,Active Leisure
10/12/2019,Kalnet4U,0300 number,5222,64077,Landline Rental,23.99,,IMD
10/12/2019,Tamar Telecom,3C Building Control ,5222,64077,Landline Rental,23.99,,IMD
10/12/2019,Kalnet4U,0300 number,5222,64077,Landline Rental,-23.99,,IMD
11/12/2019,Total Jobs,Advert,5220,60115,Staff Training and Devlopment,432.00,,Human Resources
12/12/2019,Travelodge,Temporary Accommodation, H4790 ,64401,B&B Accomodation,49.99,,Housing
12/12/2019,Vistaprint,Flyers/banner,4119,62005,"Advertising, Publicity and Marketing",55.78,,Country Services
12/12/2019,Courier Unlimited,Laptop delivery to site,5225,64100,Postage and Couriers,112.44,,IMD
12/12/2019,Domino's Pizza,General Election,4502,69150,Other Services,139.94,,Corporate Office
12/12/2019,B & Q,Equipment,5370,61713,Equipment,6.00,,Operations
13/12/2019,Travelodge,Temporary Accommodation, H4790 ,64401,B&B Accomodation,120.97,,Housing
13/12/2019,T&T Taxi,Client Taxi Booking,4440,60910,Taxi Charges,18.00,,Housing
13/12/2019,White Horse,Christmas Party,4075,53000,Fees & Charges,300.00,,One Leisure Huntingdon
13/12/2019,White Horse,Christmas Party,4075,53000,Fees & Charges,300.00,,One Leisure Huntingdon
13/12/2019,J2 Efax,eFax Service for City,5222,64071,ICT Software,19.20,,IMD
13/12/2019,1 & 1 Internet,Domain,5225,64071,ICT Software,19.32,,IMD
13/12/2019,J2 eFax,eFax Service for City,5222,64071,ICT Software,19.20,,IMD
13/12/2019,1&1,3C SS Domain Names,5229,64900,Registration Fee,19.32,,IMD
13/12/2019,J2 Efax,eFax Service for City,5222,64071,ICT Software,-19.20,,IMD
13/12/2019,1 & 1 Internet,Domain,5225,64071,ICT Software,-19.32,,IMD
14/12/2019,Facebook,Facebook advertising,4010,62005,"Advertising, Publicity and Marketing",125.00,,One Leisure St Ives
14/12/2019,Canva,Editing software,4010,62005,"Advertising, Publicity and Marketing",7.78,,One Leisure St Ives
15/12/2019,Asda,Training Materials,5220,60115,Staff Training and Devlopment,22.15,,Human Resources
16/12/2019,Sainsburys,Housing Needs Reward Pot - Christmas,5278,60124,Team Rewards,8.35,,Housing
16/12/2019,Dominos,Housing Needs Reward Pot - Christmas,5278,60124,Team Rewards,91.43,,Housing
16/12/2019,Tesco,materials,4119,61709,Materials,51.37,,Country Services
16/12/2019,Barneys,Training Materials,5220,60115,Staff Training and Devlopment,62.60,,Human Resources
17/12/2019,Mr B's Shoes & Keys,Key cutting for EFH Storage,4604,62002,Stationery,6.40,,Corporate Office
17/12/2019,Co-op,materials,4119,61709,Materials,6.50,,Country Services
17/12/2019,Survey Monkey,Marketing,4010,62005,"Advertising, Publicity and Marketing",320.00,,One Leisure Huntingdon
18/12/2019,Adobe Creative Cloud,Publishing software,4010,62005,"Advertising, Publicity and Marketing",41.62,,One Leisure St Ives
18/12/2019,Facebook,Facebook advertising,4064,62005,"Advertising, Publicity and Marketing",17.00,,One Leisure St Ives
18/12/2019,Car Park Pre-Book Charge,Aston University Campus,4604,60411,Management Charge,15.90,,Corporate Office
18/12/2019,Amazon various suppliers,materials for event,4119,62900,Events,73.96,,Country Services
18/12/2019,ALDI,Health Walks Christmas Event,4104,61900,Catering Supplies,95.98,,Active Leisure
18/12/2019,Tesco,Health Walks Christmas Event,4104,61900,Catering Supplies,44.18,,Active Leisure
19/12/2019,Facebook,Facebook advertising,4064,62005,"Advertising, Publicity and Marketing",17.00,,One Leisure St Ives
19/12/2019,AMAZON MKT PLACE,2 @ 12 CUBE INTERLOCK SHOW RACK OLH ,4050,61709,Materials,67.98,,One Leisure St Ives
19/12/2019,Amazon,Manhole Cover Keys,4075,61713,Equipment,18.60,,One Leisure Huntingdon
20/12/2019,Amazon,Trolley for equipment,4101,61713,Equipment,21.99,,Active Leisure
21/12/2019,Facebook,Facebook advertising,4064,62005,"Advertising, Publicity and Marketing",17.00,,One Leisure St Ives
22/12/2019,Facebook,Facebook advertising,4064,62005,"Advertising, Publicity and Marketing",25.00,,One Leisure St Ives
22/12/2019,Facebook,Facebook advertising,4010,62005,"Advertising, Publicity and Marketing",200.00,,One Leisure St Ives
22/12/2019,Amazon,Prime Subscription,4075,60410,Licences,7.99,,One Leisure Huntingdon
23/12/2019,Facebook,Facebook advertising,4064,62005,"Advertising, Publicity and Marketing",25.00,,One Leisure St Ives
23/12/2019,Mailchimp,Automated email City,5222,64071,ICT Software,62.11,,IMD
23/12/2019,MailChimp,Automated email Subscription for City,5222,64071,ICT Software,62.11,,IMD
23/12/2019,Mailchimp,Automated email City,5222,64071,ICT Software,-62.11,,IMD
25/12/2019,Facebook,Facebook advertising,4010,62005,"Advertising, Publicity and Marketing",36.04,,One Leisure St Ives
25/12/2019,Facebook,Facebook advertising,4064,62005,"Advertising, Publicity and Marketing",40.00,,One Leisure St Ives
26/12/2019,iStock,Image licensing,4010,62005,"Advertising, Publicity and Marketing",84.00,,One Leisure St Ives
26/12/2019,Facebook,Facebook advertising,4010,62005,"Advertising, Publicity and Marketing",17.00,,One Leisure St Ives
26/12/2019,Hootsuite,Social media monitoring,4010,62005,"Advertising, Publicity and Marketing",142.80,,One Leisure St Ives
27/12/2019,Dropbox,File hosting,4010,62005,"Advertising, Publicity and Marketing",9.99,,One Leisure St Ives
28/12/2019,Facebook,Facebook advertising,4064,62005,"Advertising, Publicity and Marketing",60.00,,One Leisure St Ives
28/12/2019,Facebook,Facebook advertising,4010,62005,"Advertising, Publicity and Marketing",17.00,,One Leisure St Ives
29/12/2019,Bitrix,Web-based PM Tool,5229,64071,ICT Software,158.00,,IMD
29/12/2019,Bitrix,Web-based PM Tool,5229,64071,ICT Software,158.00,,IMD
29/12/2019,Bitrix,Web-based PM Tool,5229,64071,ICT Software,-158.00,,IMD
30/12/2019,EBAY DAENSWANG,REMOTE CONTROL TIMER CLOCK IMP OLSI,4053,61713,Equipment,22.00,,One Leisure St Ives
30/12/2019,Aldi,materials for event,4119,62900,Events,52.46,,Country Services
30/12/2019,Tesco,Tractor Fuel,4074,60902,Fuel,14.60,,One Leisure Huntingdon
30/12/2019,DVLA,Vehicle Tax,5204,60907,Other Vehicle Costs,722.50,,Operations
30/12/2019,DVLA,Vehicle Tax,5204,60907,Other Vehicle Costs,262.50,,Operations
30/12/2019,DVLA,Vehicle Tax,5204,60907,Other Vehicle Costs,167.50,,Operations
30/12/2019,DVLA,Vehicle Tax,5204,60907,Other Vehicle Costs,722.50,,Operations
30/12/2019,DVLA,Vehicle Tax,5204,60907,Other Vehicle Costs,262.50,,Operations
30/12/2019,DVLA,Vehicle Tax,5204,60907,Other Vehicle Costs,262.50,,Operations
30/12/2019,DVLA,Vehicle Tax,5204,60907,Other Vehicle Costs,233.50,,Operations
30/12/2019,DVLA,Vehicle Tax,5204,60907,Other Vehicle Costs,262.50,,Operations
30/12/2019,DVLA,Vehicle Tax,5204,60907,Other Vehicle Costs,722.50,,Operations
30/12/2019,DVLA,Vehicle Tax,5204,60907,Other Vehicle Costs,722.50,,Operations
30/12/2019,DVLA,Vehicle Tax,5204,60907,Other Vehicle Costs,262.50,,Operations
30/12/2019,DVLA,Vehicle Tax,5204,60907,Other Vehicle Costs,262.50,,Operations
30/12/2019,DVLA,Vehicle Tax,5204,60907,Other Vehicle Costs,722.50,,Operations
30/12/2019,DVLA,Vehicle Tax,5204,60907,Other Vehicle Costs,722.50,,Operations
30/12/2019,DVLA,Vehicle Tax,5204,60907,Other Vehicle Costs,202.00,,Operations
31/12/2019,Mailchimp,Email marketing,4010,62005,"Advertising, Publicity and Marketing",55.55,,One Leisure St Ives
31/12/2019,Aldi,materials for event,4119,62900,Events,92.78,,Country Services
01/01/2020,Amazon,Equipment,5225,64070,ICT Hardware,7.99,,IMD
01/01/2020,Amazon,Amazon Prime,5225,64800,Membersip and Subscription,7.99,,IMD
01/01/2020,Amazon,Equipment,5225,64070,ICT Hardware,-7.99,,IMD
02/01/2020,Google,Google Cloud - Maps Search,5222,64900,Registration Fee,303.28,,IMD
02/01/2020,Google,Google Cloud MapSearch,5222,64071,ICT Software,303.28,,IMD
02/01/2020,Google,Google Cloud - Maps Search,5222,64900,Registration Fee,-303.28,,IMD
03/01/2020,General Registration Office,RIA, H4768 ,64403,Homeless Prevention Payments,38.00,,Housing
03/01/2020,Facebook,Facebook advertising,4064,62005,"Advertising, Publicity and Marketing",90.00,,One Leisure St Ives
04/01/2020,Microsoft,Microsoft,5237,64071,ICT Software,9.37,,IMD
04/01/2020,Microsoft,Microsoft,5237,64071,ICT Software,-9.37,,IMD
05/01/2020,Phoenix,MS 365 E3 Licences,5237,64071,ICT Software,9.37,,IMD
06/01/2020,Tesco,Vouchers,4010,62005,"Advertising, Publicity and Marketing",200.00,,One Leisure St Ives
08/01/2020,1&1 Internet,Website hosting,4010,62005,"Advertising, Publicity and Marketing",14.40,,One Leisure St Ives
09/01/2020,Gen Register Office,RIA, H4779,64403,Homeless Prevention Payments,38.00,,Housing
09/01/2020,Amazon,thermometers for caf�,4118,61709,Materials,28.06,,Country Services
09/01/2020,ebay,Safety running vests,4030,61713,Equipment,19.99,,One Leisure Huntingdon
09/01/2020,goods wagon,shredder,4032,61713,Equipment,169.99,,One Leisure Huntingdon
10/01/2020,Chorus Homes,RIA, H4811,64403,Homeless Prevention Payments,216.08,,Housing
10/01/2020,Chorus Homes,RIA, H3904,64403,Homeless Prevention Payments,216.08,,Housing
10/01/2020,Money Claim Online,Legal costs for HB debt recovery,5027,63200,Legal Fees,60.00,,Benefits
10/01/2020,TERRYS HEEL BAR,KEY CUT - CHRIS KEEBLE,4055,61709,Materials,16.00,,One Leisure St Ives
10/01/2020,amazon,Training shed equipment,100068,60201,Maintenance Buildings,5.98,,One Leisure Huntingdon
10/01/2020,Adobe Creative Cloud,Publishing software,4010,62005,"Advertising, Publicity and Marketing",49.94,,One Leisure St Ives
10/01/2020,B & Q,B & Q,4075,61713,Equipment,22.44,,One Leisure Huntingdon
10/01/2020,Kalnet 4U,Kalnet 4U,5222,64077,Landline Rental,17.99,,IMD
10/01/2020,B&Q,Plumbing parts,4075,61713,Equipment,22.44,,One Leisure Huntingdon
10/01/2020,B & Q,B & Q,4075,61713,Equipment,-22.44,,One Leisure Huntingdon
10/01/2020,Tamar Telecom,3C Building Control ,5222,64077,Landline Rental,17.99,,IMD
10/01/2020,Kalnet 4U,Kalnet 4U,5222,64077,Landline Rental,-17.99,,IMD
11/01/2020,WM MORRISONS,BURGESS CATERING,4049,61900,Catering Supplies,18.75,,One Leisure St Ives
11/01/2020,Amazon,Amazon,4075,61713,Equipment,34.70,,One Leisure Huntingdon
11/01/2020,Amazon,Goal net clips,4074,61713,Equipment,34.70,,One Leisure Huntingdon
11/01/2020,Amazon,Amazon,4075,61713,Equipment,-34.70,,One Leisure Huntingdon
12/01/2020,Screwfix direct,paint,4119,61709,Materials,53.98,,Country Services
13/01/2020,Argos,Tablet,4010,62005,"Advertising, Publicity and Marketing",139.00,,One Leisure St Ives
13/01/2020,J2 Fax,J2 Fax,5222,64071,ICT Software,19.20,,IMD
13/01/2020,J2 eFax,eFax Service for City,5222,64071,ICT Software,19.20,,IMD
13/01/2020,J2 Fax,J2 Fax,5222,64071,ICT Software,-19.20,,IMD
14/01/2020,Canva,Editing software,4010,62005,"Advertising, Publicity and Marketing",7.91,,One Leisure St Ives
14/01/2020,Elite Industrial,Elite Industrial,4327,61713,Equipment,132.35,,Operations
14/01/2020,Screwfix,Screwfix,4075,61713,Equipment,174.07,,One Leisure Huntingdon
14/01/2020,Screwfix,Plumbing parts,4075,60201,Maintenance Buildings,174.07,,One Leisure Huntingdon
14/01/2020,Screwfix,Screwfix,4075,61713,Equipment,-174.07,,One Leisure Huntingdon
15/01/2020,Toolstation,castors for serving stations,4119,61709,Materials,27.79,,Country Services
15/01/2020,Amazon,adaptor for Paxton Pits office,4124,61709,Materials,39.98,,Country Services
16/01/2020,Marks & Spencer,Hospitality - staff induction,4145,61903,Hospitality,6.75,,Corporate Office
16/01/2020,BSL Admin,BSL Admin,4327,61713,Equipment,354.00,,Operations
16/01/2020,Screwfix,Screwfix,4075,61713,Equipment,1.79,,One Leisure Huntingdon
16/01/2020,Screwfix,Masking Tape,4075,61709,Materials,1.79,,One Leisure Huntingdon
16/01/2020,Screwfix,Screwfix,4075,61713,Equipment,-1.79,,One Leisure Huntingdon
17/01/2020,Facebook,Facebook advertising,4064,62005,"Advertising, Publicity and Marketing",87.69,,One Leisure St Ives
17/01/2020,Facebook,Facebook advertising,4010,62005,"Advertising, Publicity and Marketing",17.00,,One Leisure St Ives
17/01/2020,Facebook,Facebook advertising,4010,62005,"Advertising, Publicity and Marketing",17.00,,One Leisure St Ives
17/01/2020,Adobe Creative Cloud,Publishing software,4010,62005,"Advertising, Publicity and Marketing",41.62,,One Leisure St Ives
19/01/2020,Facebook,Facebook advertising,4010,62005,"Advertising, Publicity and Marketing",25.00,,One Leisure St Ives
20/01/2020,WM MORRISONS,BURGESS CATERING,4049,61900,Catering Supplies,54.26,,One Leisure St Ives
20/01/2020,amazon,Call centre headset,4010,61713,Equipment,154.33,,One Leisure Huntingdon
20/01/2020,amazon,call centre headset,4010,61713,Equipment,154.33,,One Leisure Huntingdon
21/01/2020,Travelodge,Temporary Accommodation, H4805,64401,B&B Accomodation,76.99,,Housing
21/01/2020,Facebook,Facebook advertising,4010,62005,"Advertising, Publicity and Marketing",25.00,,One Leisure St Ives
22/01/2020,Travelodge,Temporary Accommodation, H4805,64401,B&B Accomodation,80.99,,Housing
22/01/2020,Government Events,Government Events,4327,61713,Equipment,396.78,,Operations
22/01/2020,Screwfix,Screwfix,4075,61713,Equipment,3.80,,One Leisure Huntingdon
22/01/2020,Amazon,Amazon,4075,61713,Equipment,7.99,,One Leisure Huntingdon
22/01/2020,East Midlands Train,East Midlands Train,5262,60012,Employee Allowances,116.00,,Finance
22/01/2020,Simplepay Solutions,Simplepay Solutions,5262,62200,Bank Charges,9.50,,Finance
22/01/2020,Screwfix,Plumbing parts,4075,60201,Maintenance Buildings,3.80,,One Leisure Huntingdon
22/01/2020,Amazon,Prime Subscription,4075,60410,Licences,7.99,,One Leisure Huntingdon
22/01/2020,Screwfix,Screwfix,4075,61713,Equipment,-3.80,,One Leisure Huntingdon
22/01/2020,Amazon,Amazon,4075,61713,Equipment,-7.99,,One Leisure Huntingdon
23/01/2020,AMAZON MKT PLACE,EQUIP BURGESS HALL SEATING,4050,61713,Equipment,127.08,,One Leisure St Ives
23/01/2020,tesco,Fuel,4031,60902,Fuel,6.81,,One Leisure Huntingdon
23/01/2020,Facebook,Facebook advertising,4010,62005,"Advertising, Publicity and Marketing",9.73,,One Leisure St Ives
23/01/2020,Facebook,Facebook advertising,4010,62005,"Advertising, Publicity and Marketing",17.00,,One Leisure St Ives
23/01/2020,Amazon,Amazon,4075,61713,Equipment,32.99,,One Leisure Huntingdon
23/01/2020,Digicert,Digicert,5225,64071,ICT Software,171.37,,IMD
23/01/2020,Mailchimp,Mailchimp,5225,64071,ICT Software,61.84,,IMD
23/01/2020,Amazon,Shower solenoid,4075,60201,Maintenance Buildings,32.99,,One Leisure Huntingdon
23/01/2020,Amazon,Amazon,4075,61713,Equipment,-32.99,,One Leisure Huntingdon
23/01/2020,Digicert,licences.cambridge.gov.uk,5227,64071,ICT Software,171.37,,IMD
23/01/2020,MailChimp,Automated email Subscription for City,5222,64071,ICT Software,61.84,,IMD
23/01/2020,Digicert,Digicert,5225,64071,ICT Software,-171.37,,IMD
23/01/2020,Mailchimp,Mailchimp,5225,64071,ICT Software,-61.84,,IMD
24/01/2020,The Bell Hotel,Conference,4145,64300,Conference Expenses,59.70,,Corporate Office
24/01/2020,ikea,Training shed equipment,100068,60201,Maintenance Buildings,293.50,,One Leisure Huntingdon
24/01/2020,Argos,Training shed equipment,100068,60201,Maintenance Buildings,132.94,,One Leisure Huntingdon
24/01/2020,Argos,Training shed equipment,100068,60201,Maintenance Buildings,109.97,,One Leisure Huntingdon
24/01/2020,Facebook,Facebook advertising,4010,62005,"Advertising, Publicity and Marketing",40.00,,One Leisure St Ives
24/01/2020,Facebook,Facebook advertising,4010,62005,"Advertising, Publicity and Marketing",17.00,,One Leisure St Ives
24/01/2020,Facebook,Facebook advertising,4010,62005,"Advertising, Publicity and Marketing",17.00,,One Leisure St Ives
25/01/2020,screwfix,Training shed equipment,100068,60201,Maintenance Buildings,33.98,,One Leisure Huntingdon
25/01/2020,B & Q,Training shed equipment,100068,60201,Maintenance Buildings,27.54,,One Leisure Huntingdon
25/01/2020,Wickes,Training shed equipment,100068,60201,Maintenance Buildings,36.00,,One Leisure Huntingdon
25/01/2020,Facebook,Facebook advertising,4010,62005,"Advertising, Publicity and Marketing",245.46,,One Leisure St Ives
25/01/2020,Facebook,Facebook advertising,4010,62005,"Advertising, Publicity and Marketing",25.00,,One Leisure St Ives
25/01/2020,Tesco,Tesco,4075,61713,Equipment,12.50,,One Leisure Huntingdon
25/01/2020,Tesco,Catering Supplies,4071,61900,Catering Supplies,12.50,,One Leisure Huntingdon
25/01/2020,Tesco,Tesco,4075,61713,Equipment,-12.50,,One Leisure Huntingdon
26/01/2020,iStock,Image licensing,4010,62005,"Advertising, Publicity and Marketing",84.00,,One Leisure St Ives
26/01/2020,Facebook,Facebook advertising,4010,62005,"Advertising, Publicity and Marketing",40.00,,One Leisure St Ives
26/01/2020,Hootsuite,Social media monitoring,4010,62005,"Advertising, Publicity and Marketing",142.80,,One Leisure St Ives
26/01/2020,Amazon,Amazon,4327,61713,Equipment,10.99,,Operations
27/01/2020,Amazon,Training shed equipment,100068,60201,Maintenance Buildings,221.41,,One Leisure Huntingdon
27/01/2020,Wayfair,Training shed equipment,100068,60201,Maintenance Buildings,46.99,,One Leisure Huntingdon
27/01/2020,Dropbox,File hosting,4010,62005,"Advertising, Publicity and Marketing",9.99,,One Leisure St Ives
27/01/2020,tesco,tesco,4075,61713,Equipment,2.20,,One Leisure Huntingdon
27/01/2020,Scewfix,Scewfix,4075,61713,Equipment,2.70,,One Leisure Huntingdon
27/01/2020,London Stock Exchangs,London Stock Exchangs,5262,62200,Bank Charges,78.00,,Finance
27/01/2020,Tesco,Catering Supplies,4071,61900,Catering Supplies,2.20,,One Leisure Huntingdon
27/01/2020,Screwfix,Plumbing parts,4075,60201,Maintenance Buildings,2.70,,One Leisure Huntingdon
27/01/2020,tesco,tesco,4075,61713,Equipment,-2.20,,One Leisure Huntingdon
27/01/2020,Scewfix,Scewfix,4075,61713,Equipment,-2.70,,One Leisure Huntingdon
28/01/2020,Amazon,Housing Duty Out of Hours Phone + Case/Protectors,5278,61713,Equipment,157.34,,Housing
28/01/2020,Physique,Training shed equipment,100068,60201,Maintenance Buildings,105.94,,One Leisure Huntingdon
28/01/2020,Ridgeons,Training shed equipment,100068,60201,Maintenance Buildings,67.24,,One Leisure Huntingdon
28/01/2020,Displaysense,Training shed equipment,100068,60201,Maintenance Buildings,70.31,,One Leisure Huntingdon
28/01/2020,Facebook,Facebook advertising,4010,62005,"Advertising, Publicity and Marketing",60.00,,One Leisure St Ives
28/01/2020,Screwfix,Screwfix,4327,61713,Equipment,147.45,,Operations
28/01/2020,Net World Sport,Net World Sport,4075,61713,Equipment,105.93,,One Leisure Huntingdon
28/01/2020,TSGN,TSGN,4145,60012,Employee Allowances,54.40,,Corporate Office
28/01/2020,Net World Sports,3G Pitch - corner flags,4074,61713,Equipment,105.93,,One Leisure Huntingdon
28/01/2020,Net World Sport,Net World Sport,4075,61713,Equipment,-105.93,,One Leisure Huntingdon
29/01/2020,Money Claim Online,Legal costs for HB debt recovery,9167,12052,Sales Control 2,105.00,,Benefits
29/01/2020,Screwfix direct,boot wipers for HCP,4119,61709,Materials,64.41,,Country Services
29/01/2020,Amazon,Amazon,4327,61713,Equipment,41.97,,Operations
29/01/2020,Bitrix,Bitrix,5229,64071,ICT Software,157.73,,IMD
29/01/2020,Trainline,Trainline,5220,60115,Staff Training and Devlopment,112.50,,Human Resources
29/01/2020,Bitrix,Web-based PM Tool,5229,64071,ICT Software,157.73,,IMD
29/01/2020,Bitrix,Bitrix,5229,64071,ICT Software,-157.73,,IMD
30/01/2020,Hamilton Davies,Hamilton Davies,4327,61713,Equipment,300.00,,Operations
30/01/2020,Amazon,Amazon,5225,64070,ICT Hardware,480.00,,IMD
30/01/2020,Amazon,250x Samsung Headphones w/mic,5223,64070,ICT Hardware,480.00,,IMD
30/01/2020,Amazon,Amazon,5225,64070,ICT Hardware,-480.00,,IMD
31/01/2020,Sainsbury's,Hospitality - Managers Forum,4145,61903,Hospitality,6.60,,Corporate Office
31/01/2020,Mailchimp,Email marketing,4010,62005,"Advertising, Publicity and Marketing",55.89,,One Leisure St Ives
31/01/2020,Black Wolf Ltd,Black Wolf Ltd,4075,61713,Equipment,4.20,,One Leisure Huntingdon
31/01/2020,Digicert,Digicert,5225,64071,ICT Software,324.34,,IMD
31/01/2020,DVLA,DVLA,5204,60907,Other Vehicle Costs,327.50,,Operations
31/01/2020,DVLA,DVLA,5204,60907,Other Vehicle Costs,262.50,,Operations
31/01/2020,DVLA,DVLA,5204,60907,Other Vehicle Costs,262.50,,Operations
31/01/2020,DVLA,DVLA,5204,60907,Other Vehicle Costs,617.50,,Operations
31/01/2020,DVLA,DVLA,5204,60907,Other Vehicle Costs,617.50,,Operations
31/01/2020,DVLA,DVLA,5204,60907,Other Vehicle Costs,262.50,,Operations
31/01/2020,DVLA,DVLA,5204,60907,Other Vehicle Costs,617.50,,Operations
31/01/2020,DVLA,DVLA,5204,60907,Other Vehicle Costs,262.50,,Operations
31/01/2020,DVLA,DVLA,5204,60907,Other Vehicle Costs,262.50,,Operations
31/01/2020,DVLA,DVLA,5204,60907,Other Vehicle Costs,262.50,,Operations
31/01/2020,DVLA,DVLA,5204,60907,Other Vehicle Costs,722.50,,Operations
31/01/2020,Black Wolf,Cut Keys,4075,60201,Maintenance Buildings,4.20,,One Leisure Huntingdon
31/01/2020,Black Wolf Ltd,Black Wolf Ltd,4075,61713,Equipment,-4.20,,One Leisure Huntingdon
31/01/2020,Digicert,*.scambs.gov.uk,5228,64071,ICT Software,324.34,,IMD
31/01/2020,Digicert,Digicert,5225,64071,ICT Software,-324.34,,IMD
01/02/2020,Facebook,Facebook advertising,4064,62005,"Advertising, Publicity and Marketing",125.00,,One Leisure St Ives
02/02/2020,Midland Expressway Ltd,Toll road charge M6,4604,60022,Travel Allowance,5.60,,Corporate Office
02/02/2020,Amazon,thermometers for caf�,4118,61709,Materials,11.99,,Country Services
02/02/2020,Amazon,tea towels,4118,61709,Materials,12.99,,Country Services
02/02/2020,Google,Google,5222,64900,Registration Fee,141.12,,IMD
02/02/2020,Google,Google Cloud MapSearch,5222,64071,ICT Software,141.12,,IMD
02/02/2020,Google,Google,5222,64900,Registration Fee,-141.12,,IMD
02/02/2020,ebay,Maintenance items,4032,60201,Maintenance Buildings,43.17,,One Leisure Huntingdon
02/02/2020,Amazon,tea towels,4118,61709,Materials,9.49,,Country Services
03/02/2020,NFC Tagify,NFC Tags/Stickers,4129,61713,Equipment,31.68,,Operations
03/02/2020,J Parker,bulbs,4119,61709,Materials,138.84,,Country Services
03/02/2020,Dutchbulbs.co.uk,bulbs,4119,61709,Materials,253.20,,Country Services
04/02/2020,Phoenix,MS 365 E3 Licences,5237,64071,ICT Software,28.10,,IMD
04/02/2020,B & Q,Maintenance items,4032,60201,Maintenance Buildings,10.96,,One Leisure Huntingdon
05/02/2020,Sainsbury's,Refreshments/Hospitality,4145,61903,Hospitality,14.60,,Corporate Office
05/02/2020,Northgate Taxis,Northgate Taxis,5220,60115,Staff Training and Devlopment,25.00,,Human Resources
05/02/2020,Peterborough Station,Peterborough Station,5220,60115,Staff Training and Devlopment,15.00,,Human Resources
05/02/2020,Northgate Taxis,Northgate Taxis,5220,60115,Staff Training and Devlopment,25.00,,Human Resources
05/02/2020,M6 Toll,M6 Toll,4604,60022,Travel Allowance,6.70,,Corporate Office
05/02/2020,Shell Fenstanton,Shell Fenstanton,4604,60022,Travel Allowance,67.70,,Corporate Office
06/02/2020,ENG & DESIGN PLAST CAMB, OPAL PERSPEX,4055,60201,Maintenance Buildings,234.00,,One Leisure St Ives
06/02/2020,Ridgeons,Training shed accessories,100068,60201,Maintenance Buildings,40.81,,One Leisure Huntingdon
06/02/2020,Northgate Taxis,Northgate Taxis,5220,60115,Staff Training and Devlopment,25.00,,Human Resources
06/02/2020,Peterborough Station,Peterborough Station,5220,60115,Staff Training and Devlopment,15.00,,Human Resources
06/02/2020,Northgate Taxis,Northgate Taxis,5220,60115,Staff Training and Devlopment,25.00,,Human Resources
07/02/2020,Homebase,Training shed accessories,100068,60201,Maintenance Buildings,49.43,,One Leisure Huntingdon
07/02/2020,Amazon,Tablet cases,4055,61713,Equipment,36.45,,One Leisure St Ives
07/02/2020,Facebook,Facebook,4064,62005,"Advertising, Publicity and Marketing",125.00,,One Leisure St Ives
08/02/2020,Twilio,HDC Transformation,5224,64071,ICT Software,20.00,,IMD
10/02/2020,B&Q,Fixing Tape,4075,60201,Maintenance Buildings,6.71,,One Leisure Huntingdon
10/02/2020,SHARKLIFT EURO-PRO,SHARK VACUUM CLEANER,4053,61713,Equipment,249.95,,One Leisure St Ives
10/02/2020,CAF� FAIR TRADE,PULY MILK LIQUID CLEANER OLSN,4071,61300,Cleaning Materials,17.94,,One Leisure St Ives
10/02/2020,Stanhill Court Hotel,Stanhill Court Hotel - E Horner - 16.03.2020 - 18.03.2020,5266,64400,Hotel and Other,160.55,,Housing
10/02/2020,Tamar Telecom,3C Building Control ,5222,64077,Landline Rental,17.99,,IMD
10/02/2020,Mammoth Workwear,Boots,4343,62000,"Clothes, Uniform and Laundry",126.40,,Operations
10/02/2020,Amazon,craft materials for events,4119,62900,Events,16.48,,Country Services
10/02/2020,Adobe,Adobe,4010,62005,"Advertising, Publicity and Marketing",49.94,,One Leisure St Ives
10/02/2020,1 & 1 Internet,1 & 1 Internet,4010,62005,"Advertising, Publicity and Marketing",14.40,,One Leisure St Ives
11/02/2020,CPAG,A Welfare Benefits Publication Order,5278,62003,"Books, Publications",68.99,,Housing
11/02/2020,AM Sport,Goods for resale,4064,61907,Vending Materials,228.16,,One Leisure Huntingdon
11/02/2020,AM Sport,Goods for Resale,4064,61907,Vending Materials,259.00,,One Leisure Huntingdon
11/02/2020,AM Sport,Goods for resale,4064,61907,Vending Materials,235.96,,One Leisure Huntingdon
11/02/2020,Screwfix,Padlock/Bolt Cutters,4362,60273,Site Alterations,124.44,,Operations
11/02/2020,Screwfix,Padlock/Bolt Cutters,4327,61713,Equipment,124.49,,Operations
11/02/2020,Screwfix,Padlock/Bolt Cutters,4362,60273,Site Alterations,91.96,,Operations
12/02/2020,Terrys heel Bar,Key Cutting-Training Shed,4063,60201,Maintenance Buildings,61.00,,One Leisure St Ives
12/02/2020,Poundstretcher,Cleaning equip-Training Shed,4063,61713,Equipment,6.26,,One Leisure St Ives
12/02/2020,Shiruiykej ,Shiruiykej ,5204,60907,Other Vehicle Costs,7.98,,Operations
12/02/2020,Amazon,Amazon,4010,62005,"Advertising, Publicity and Marketing",31.58,,One Leisure St Ives
12/02/2020,Facebook,Facebook,4064,62005,"Advertising, Publicity and Marketing",125.00,,One Leisure St Ives
12/02/2020,Facebook,Facebook,4064,62005,"Advertising, Publicity and Marketing",90.00,,One Leisure St Ives
13/02/2020,Amazon,HDMI Cables,4075,61713,Equipment,17.70,,One Leisure Huntingdon
13/02/2020,Havebury Housing - Whitestone,RIA, H4852 ,64403,Homeless Prevention Payments,108.56,,Housing
13/02/2020,J2 eFax,eFax Service for City,5222,64071,ICT Software,19.20,,IMD
13/02/2020,1&1,applications.greaterplanning,5223,64900,Registration Fee,30.00,,IMD
13/02/2020,Best4 Systems,One button phone Programmer,5225,64078,Radio Telephone,72.00,,IMD
13/02/2020,Money Claim Online,Legal costs for HB debt recovery,9167,12052,Sales Control 2,105.00,,Benefits
14/02/2020,West Suffolk Council,Training for DM Admin,5220,60115,Staff Training and Devlopment,256.80,,Planning
14/02/2020,M&S,Refreshments/Hospitality,4145,61903,Hospitality,11.42,,Corporate Office
14/02/2020,Amazon,Fuses,4075,60201,Maintenance Buildings,1.90,,One Leisure Huntingdon
14/02/2020,Pearson - Vue Comp TIA,Exam Fee for J Usher,5229,60115,Staff Training and Devlopment,248.40,,IMD
14/02/2020,Screwfix,Training shed accessories,100068,60201,Maintenance Buildings,29.99,,One Leisure Huntingdon
14/02/2020,West End DIY,Kitchenware-Training Shed,4063,61713,Equipment,37.47,,One Leisure St Ives
14/02/2020,Amazon,Amazon,4010,62005,"Advertising, Publicity and Marketing",10.99,,One Leisure St Ives
14/02/2020,Canva,Canva,4010,62005,"Advertising, Publicity and Marketing",7.88,,One Leisure St Ives
16/02/2020,Facebook,Facebook,4010,62005,"Advertising, Publicity and Marketing",6.45,,One Leisure St Ives
16/02/2020,Facebook,Facebook,4010,62005,"Advertising, Publicity and Marketing",62.80,,One Leisure St Ives
17/02/2020,FITNESS SUPERSTORE,BODY POWER TRICEP ROPE,4053,61713,Equipment,10.94,,One Leisure St Ives
17/02/2020,GOLDEN LION,3 @ ROOM RES 29 FEB 90'S NIGHT,4050,64079,Entertainments,165.00,,One Leisure St Ives
17/02/2020,Amazon,Dell HDD for SCDC Server,5228,64069,Network Hardware,94.00,,IMD
17/02/2020,amazon,Equipment,4032,61713,Equipment,15.98,,One Leisure Huntingdon
17/02/2020,TV Licensing,TV licence,5190,60410,Licences,154.50,,Operations
17/02/2020,Screwfix direct,rope for flag,4119,61709,Materials,15.99,,Country Services
18/02/2020,Amazon,Scale rulers,5282,62002,Stationery,27.90,,Planning
18/02/2020,Amazon,Scale rulers-looks like they have refuned theVAT,5282,62002,Stationery,-4.68,,Planning
18/02/2020,Amazon,Blood Pressure Cuff,4072,61713,Equipment,12.89,,One Leisure Huntingdon
18/02/2020,TL & GN Railway,RIA, H4853 ,64403,Homeless Prevention Payments,12.20,,Housing
18/02/2020,Ebay,Toilet roll dispenser keys,4032,60201,Maintenance Buildings,8.13,,One Leisure Huntingdon
18/02/2020,Adobe,Adobe,4010,62005,"Advertising, Publicity and Marketing",41.62,,One Leisure St Ives
19/02/2020,Amazon,Vinyl kettle bell weight set,4101,61713,Equipment,37.99,,Active Leisure
19/02/2020,Limartradin,Limartradin,5204,60907,Other Vehicle Costs,3.75,,Operations
19/02/2020,Fonts,Fonts,4010,62005,"Advertising, Publicity and Marketing",33.50,,One Leisure St Ives
20/02/2020,Amazon,Mini Trampoline,4101,61713,Equipment,39.99,,Active Leisure
20/02/2020,AMAZON MKT PLACE,SPANDEX COVERS WED ANNIV,4050,61713,Equipment,66.95,,One Leisure St Ives
20/02/2020,Safelincs,Defib Battery,5219,61713,Equipment,142.07,,One Leisure Huntingdon
21/02/2020,MS Online,SCCM Fix,5225,62402,Profesional Services,238.80,,IMD
22/02/2020,Amazon,Prime Subscription,4075,60410,Licences,7.99,,One Leisure Huntingdon
22/02/2020,Facebook,Facebook,4010,62005,"Advertising, Publicity and Marketing",43.27,,One Leisure St Ives
23/02/2020,larrys Heel bar,Key Cutting,10068,60201,Maintenance Buildings,40.20,,One Leisure St Ives
23/02/2020,Amazon,Camera/SD Card/USB Reader,5223,64070,ICT Hardware,1.13,,IMD
23/02/2020,Amazon,Camera/SD Card/USB Reader,5223,64070,ICT Hardware,17.15,,IMD
23/02/2020,MailChimp,Automated email Subscription for City,5222,64071,ICT Software,62.61,,IMD
23/02/2020,Amazon,Whiteboards for Desktop Storage,5229,62002,Stationery,49.85,,IMD
24/02/2020,Amazon,"Nerf Guns, glasses, bullets",4073,61713,Equipment,174.87,,One Leisure Huntingdon
24/02/2020,NPE,NPE,5204,60907,Other Vehicle Costs,60.00,,Operations
24/02/2020,Facebook,Facebook,4010,62005,"Advertising, Publicity and Marketing",258.04,,One Leisure St Ives
25/02/2020,Woodland Trust,Tree saplings for tree planting day,5282,69150,Other Services,304.00,,Planning
25/02/2020,Thameslink,Train fare,4145,60012,Employee Allowances,38.20,,Corporate Office
25/02/2020,Thameslink,Train fare,4145,60012,Employee Allowances,59.20,,Corporate Office
25/02/2020,Thameslink,Train fare refund,4145,60012,Employee Allowances,-38.20,,Corporate Office
25/02/2020,WM MORRISONS,BURGESS CATERING ITEMS VAR,4049,61900,Catering Supplies,67.46,,One Leisure St Ives
26/02/2020,Ikea,Artificial grass/plant/pot,4129,60200,Facilities Management,59.45,,Operations
26/02/2020,Screwfix,Pot Hole repair,4055,60201,Maintenance Buildings,43.98,,One Leisure St Ives
26/02/2020,Screwfix,Ladders,4055,61713,Equipment,71.98,,One Leisure St Ives
26/02/2020,DVLA,DVLA,5204,60907,Other Vehicle Costs,262.50,,Operations
26/02/2020,DVLA,DVLA,5204,60907,Other Vehicle Costs,167.50,,Operations
26/02/2020,DVLA,DVLA,5204,60907,Other Vehicle Costs,262.50,,Operations
26/02/2020,DVLA,DVLA,5204,60907,Other Vehicle Costs,262.50,,Operations
26/02/2020,istock,istock,4010,62005,"Advertising, Publicity and Marketing",84.00,,One Leisure St Ives
26/02/2020,Hoosuite,Hoosuite,4010,62005,"Advertising, Publicity and Marketing",142.80,,One Leisure St Ives
27/02/2020,LOCKERTEKLT,100 TEMP LOCKER TOKENS,4055,61400,Goods for Resale,53.04,,One Leisure St Ives
27/02/2020,Brodit,Active holder with cig plug,4362,61713,Equipment,275.96,,Operations
27/02/2020,Facebook,Facebook,4010,62005,"Advertising, Publicity and Marketing",60.00,,One Leisure St Ives
28/02/2020,Crazy Egg,Annual Software Subscription,5225,64900,Registration Fee,87.38,,IMD
28/02/2020,Dropbox,Dropbox,4010,62005,"Advertising, Publicity and Marketing",9.99,,One Leisure St Ives
29/02/2020,NCC Training Resources,NCC Training Resources,5220,60115,Staff Training and Devlopment,299.99,,Human Resources
29/02/2020,Facebook,Facebook,4010,62005,"Advertising, Publicity and Marketing",8.95,,One Leisure St Ives
29/02/2020,MailChimp,MailChimp,4010,62005,"Advertising, Publicity and Marketing",57.00,,One Leisure St Ives
01/03/2020,Google,Google Cloud MapSearch,5222,64071,ICT Software,145.73,,IMD
01/03/2020,Wickes,steel rods for fencing,4119,61709,Materials,26.65,,Country Services
02/03/2020,M&S,Refreshments/Hospitality,4145,61903,Hospitality,34.84,,Corporate Office
02/03/2020,GOLDEN LION,FOOD RE 90'S NIGHT 29FEB BURG,4050,64079,Entertainments,29.00,,One Leisure St Ives
02/03/2020,GOLDEN LION,FOOD RE 90'S NIGHT 29FEB BURG,4050,64079,Entertainments,69.00,,One Leisure St Ives
02/03/2020,Costa Coffee,Costa Coffee,5220,60115,Staff Training and Devlopment,11.70,,Human Resources
02/03/2020,bay,Maintenance items,4032,60201,Maintenance Buildings,3.99,,One Leisure Huntingdon
03/03/2020,FIRE RESCUE TRAIN,PHILIPS HEARTSTART DEFIB,5219,61713,Equipment,294.00,,One Leisure St Ives
03/03/2020,FIRE RESCUE TRAIN,PHILIPS HEARTSTART DEFIB,5219,61713,Equipment,300.00,,One Leisure St Ives
03/03/2020,FIRE RESCUE TRAIN,PHILIPS HEARTSTART DEFIB,5219,61713,Equipment,300.00,,One Leisure St Ives
03/03/2020,FIRE RESCUE TRAIN,PHILIPS HEARTSTART DEFIB,5219,61713,Equipment,300.00,,One Leisure St Ives
03/03/2020,Guinness Northern,RIA,H4388,64401,B&B Accomodation,157.00,,Housing
03/03/2020,WestEndDIY,5x Padlock w/keys,5229,64070,ICT Hardware,39.85,,IMD
04/03/2020,Travelodge,Temporary Accommodation,H4388,64401,B&B Accomodation,357.94,,Housing
04/03/2020,medisupplies,Face shields,4130,61713,Equipment,221.40,,One Leisure Huntingdon
04/03/2020,safety first aid,Face shields,4130,61713,Equipment,145.80,,One Leisure Huntingdon
04/03/2020,Motorserv,O/S amount on invoice,5204,60904,Vehicle Repairs,19.48,,Operations
04/03/2020,Survey Monkey,Advantage Annual Plan,4362,69150,Other Services,384.00,,Operations
04/03/2020,Amazon,equipment maintenance,4118,61702,"Maintenance - Equipment, Furniture and Materials",6.48,,Country Services
05/03/2020,Tenancy Fraud Forum London,Tenancy Fraud Forum for Lorraine Martin ,5266,60115,Staff Training and Devlopment,298.00,,Housing
05/03/2020,Phoenix,MS 365 E3 Licences,5237,64071,ICT Software,28.10,,IMD
05/03/2020,ACCA,ACCA,5262,62200,Bank Charges,258.00,,Finance
06/03/2020,Physical Company,Wrist Ankle Weights,4101,61713,Equipment,402.00,,Active Leisure
06/03/2020,Physical Company,Wrist Ankle Weights,4101,61713,Equipment,141.55,,Active Leisure
06/03/2020,LOCKERTEKLT,200 LOCKER COIND OLD 1,4055,61400,Goods for Resale,103.74,,One Leisure St Ives
06/03/2020,Digicert,*.scambs.gov.uk,5228,64071,ICT Software,548.00,,IMD
06/03/2020,Booker,caf� food for resale,4118,61900,Catering Supplies,230.38,,Country Services
08/03/2020,Dyson,parts,4032,60201,Maintenance Buildings,30.50,,One Leisure Huntingdon
09/03/2020,AMAZON MKT PLACE,2 YOGA BLOCK 2 PILATES BALLS,4055,61713,Equipment,37.98,,One Leisure St Ives
10/03/2020,Gen Register Office,RIA,H4388,64401,B&B Accomodation,38.00,,Housing
10/03/2020,Tamar Telecom,3C Building Control ,5222,64077,Landline Rental,17.99,,IMD
10/03/2020,Qualsafe,decontamination wipes,4130,61713,Equipment,84.60,,One Leisure Huntingdon
10/03/2020,screwfix,materials,4119,61709,Materials,48.00,,Country Services
10/03/2020,vistaprint,promotional banners,4119,62005,"Advertising, Publicity and Marketing",278.35,,Country Services
10/03/2020,No 5 Chambers Ltd,No 5 Chambers Ltd,5220,60115,Staff Training and Devlopment,234.00,,Human Resources
10/03/2020,EV Connectors,EV Connectors,5204,60907,Other Vehicle Costs,348.00,,Operations
10/03/2020,Adobe,Adobe,4010,62005,"Advertising, Publicity and Marketing",41.62,,One Leisure St Ives
11/03/2020,Travelodge,Temporary Accommodation,H4388,64401,B&B Accomodation,302.86,,Housing
11/03/2020,rutlands,workshop materials,4119,61709,Materials,71.85,,Country Services
11/03/2020,Orangegreen,Orangegreen,5204,60907,Other Vehicle Costs,6.90,,Operations
11/03/2020,1 and 1 IONOS,1 and 1 IONOS,4010,62005,"Advertising, Publicity and Marketing",14.40,,One Leisure St Ives
12/03/2020,Facebook,Facebook,4010,62005,"Advertising, Publicity and Marketing",200.00,,One Leisure St Ives
13/03/2020,Travelodge,Temporary Accommodation,H4288,64401,B&B Accomodation,319.19,,Housing
13/03/2020,J2 eFax,eFax Service for City,5222,64071,ICT Software,19.20,,IMD
13/03/2020,1&1,HDC Domains,5224,64900,Registration Fee,51.72,,IMD
13/03/2020,Wilkinsons,equipment,4032,61713,Equipment,10.00,,One Leisure Huntingdon
13/03/2020,Amazon,Pool Overshoes,4055,61713,Equipment,15.00,,One Leisure St Ives
14/03/2020,Canva,Canva,4010,62005,"Advertising, Publicity and Marketing",8.34,,One Leisure St Ives
15/03/2020,The Stanwell Heathrow,Hotel for conference - Licensing,4269,64300,Conference Expenses,450.00,,Corporate Office
16/03/2020,ebay,Equipment,4032,61713,Equipment,9.94,,One Leisure Huntingdon
16/03/2020,Mr Pets,Hand Sanitizer,4130,62000,"Clothes, Uniform and Laundry",586.66,,Operations
16/03/2020,SMI Group,Hand Sanitiser,4055,61713,Equipment,143.71,,One Leisure St Ives
16/03/2020,Money Claim Online,Legal costs for HB debt recovery,9167,12052,Sales Control 2,105.00,,Benefits
16/03/2020,Money Claim Online,Legal costs for HB debt recovery,5027,63200,Legal Fees,35.00,,Benefits
16/03/2020,Facebook,Facebook,4010,62005,"Advertising, Publicity and Marketing",30.68,,One Leisure St Ives
17/03/2020,Travelodge,Temporary Accommodation,H4388,64401,B&B Accomodation,270.22,,Housing
17/03/2020,Facebook,Facebook,4010,62005,"Advertising, Publicity and Marketing",66.97,,One Leisure St Ives
18/03/2020,Tesco,Tractor Fuel,4074,60902,Fuel,13.90,,One Leisure Huntingdon
18/03/2020,Amazon,Dell HDD for SCDC Server,5228,64069,Network Hardware,-94.00,,IMD
18/03/2020,Post Office,Stamps - Parking,4372,62000,"Clothes, Uniform and Laundry",125.98,,Operations
18/03/2020,www.local.gov.uk,Licences,4164,60012,Employee Allowances,-477.60,,Corporate Office
18/03/2020,Adobe,Adobe,4010,62005,"Advertising, Publicity and Marketing",41.62,,One Leisure St Ives
19/03/2020,Cups Direct,Paper cups,5288,61702,"Maintenance - Equipment, Furniture and Materials",45.53,,Operations
20/03/2020,BEMYBEAR.COM,16 VARIOUS PLUS 16 BIRTH CERTS,4019,61713,Equipment,93.70,,One Leisure St Ives
20/03/2020,Travelodge,Temporary Accommodation,H4288,64401,B&B Accomodation,288.58,,Housing
20/03/2020,wickes,paint for the caf�,4119,60201,Maintenance Buildings,64.00,,Country Services
22/03/2020,Amazon,Prime Subscription,4075,60410,Licences,7.99,,One Leisure Huntingdon
22/03/2020,ebay,HDMI - VGA cable,4032,60201,Maintenance Buildings,2.60,,One Leisure Huntingdon
23/03/2020,Amazon,Dell HDD for SCDC Server,5228,64069,Network Hardware,140.00,,IMD
23/03/2020,MailChimp,Automated email Subscription for City,5222,64071,ICT Software,69.92,,IMD
23/03/2020,1&1,HDC Domains,5224,64900,Registration Fee,163.20,,IMD
23/03/2020,Mr Pets,Hand Sanitizer,4130,62000,"Clothes, Uniform and Laundry",640.00,,Operations
23/03/2020,Huboo,Hand Sanitizer,4130,62000,"Clothes, Uniform and Laundry",48.93,,Operations
23/03/2020,Tesco,Tesco,5204,60907,Other Vehicle Costs,9.50,,Operations
23/03/2020,screwfix,screwfix,5204,60907,Other Vehicle Costs,102.36,,Operations
23/03/2020,Nisbets,Nisbets,5204,60907,Other Vehicle Costs,751.89,,Operations
23/03/2020,Nisbets,Nisbets,5204,60907,Other Vehicle Costs,11.27,,Operations
23/03/2020,Facebook,Facebook,4010,62005,"Advertising, Publicity and Marketing",40.00,,One Leisure St Ives
24/03/2020,Travelodge,Temporary Accommodation,H4834,64401,B&B Accomodation,287.56,,Housing
26/03/2020,POST OFFICE COUNTER,OLH 36 2nd CLASS STAMPS,4021,64100,Postage and Couriers,23.40,,One Leisure St Ives
26/03/2020,istock,istock,4010,62005,"Advertising, Publicity and Marketing",84.00,,One Leisure St Ives
26/03/2020,Hootsuite,Hootsuite,4010,62005,"Advertising, Publicity and Marketing",142.80,,One Leisure St Ives
27/03/2020,Amazon,Sealant,4075,60201,Maintenance Buildings,31.98,,One Leisure Huntingdon
27/03/2020,SurveyMonkey,HDC Corp Team,5229,64071,ICT Software,320.00,,IMD
27/03/2020,Dropbox,Dropbox,4010,62005,"Advertising, Publicity and Marketing",9.99,,One Leisure St Ives
30/03/2020,POST OFFICE COUNTER,OLSI 36 2nd CLASS STAMPS,4055,64100,Postage and Couriers,23.40,,One Leisure St Ives
31/03/2020,Argos,Microwaves for Dolphin Hotel (x6),4440,61713,Equipment,269.94,,Housing
31/03/2020,Amazon,Team Reward - pt1 of 2,5225,60124,Team Rewards,160.00,,IMD
31/03/2020,Mailchimp,Mailchimp,4010,62005,"Advertising, Publicity and Marketing",58.90,,One Leisure St Ives
01/04/2020,Google,Google Cloud MapSearch,5222,64071,ICT Software,23.99,,IMD
01/04/2020,Volvo Group,Volvo Group,5204,60907,Other Vehicle Costs,800.00,,Operations
01/04/2020,Volvo Group,Volvo Group,5204,60907,Other Vehicle Costs,747.94,,Operations
02/04/2020,Argos,Microwaves for Dolphin Hotel (x4),4440,61713,Equipment,179.96,,Housing
02/04/2020,www.A1Taxis.Ne,Transport to TA (C King) ,4440,60910,Taxi Charges,110.00,,Housing
02/04/2020,Safety Gloves,Safety Gloves,4130,61709,Materials,"3,994.80",,Finance
